{"text_format":"1","workbook":"xlsx","n_sheets":9,"sheets":["AER only","Instructions","Contents","Business & other details","2.5 Connections","2.6 Non-network","2.10 Network overheads","2.11 Labour","Amendments"],"not_rendered":{"charts":0,"images":5,"macros":1,"external_links":1,"defined_names":442,"comments":1,"pivot_tables":0},"unopened":[],"bounds":{"document_bytes":16777216,"sheet_cells":100000,"rows_first":2000,"rows_last":500,"rows_between":2000,"halvings":0,"cell_chars":16384,"cell_head_chars":4096},"cells_cut":0,"cells_raw":0,"read":"whole","date_system":"1900"}

{"sheet":"AER only","index":0,"n_rows":223,"n_cols":40,"rows_kept":223,"cut":false,"hidden":true,"merged":[[93,1,95,1],[96,1,100,1],[104,1,105,1],[148,1,148,8],[54,1,54,5],[54,14,54,21],[54,25,54,29],[54,30,54,33],[72,14,72,15],[72,25,72,28],[0,1,0,11],[4,27,4,38],[6,27,6,30],[6,33,6,37],[53,25,53,29],[53,30,53,33]]}
[null,"Data in these columns used for data validation and database purposes."]
[null,"Date last modified:","2017-01-16","added (Albury and Victora) for AGN"]
[null,null,"2016-10-17","updated TransGrid's correct legal name, corrected TasNetworks (T) to June financial year"]
[null,null,"2017-02-01","inserted Power and Water, added NRs (dms_FeederCat_1 and dms_FeederCat_2)"]
[null,null,"2017-03-03","inserted AEMO as a business",null,null,null,null,null,null,null,null,null,null,null,null,null,null,null,null,null,null,null,null,null,null,null,"FOR ELECTRICITY BUSINESSES ONLY"]
[null,null,"2018-03-28","major changes to accommodate STPIS"]
[null,null,"Template Version",5,null,null,null,null,null,null,null,null,null,null,null,null,null,null,null,null,null,null,null,null,null,null,null,"Feeder Types",null,null,null,"TasNetworks (D)","MAIFI flag","Feeder Names"]
[]
[null,null,null,null,null,null,null,null,null,null,null,null,null,null,null,null,null,null,null,null,null,null,null,null,null,null,null,"CBD","Urban","Short rural","long rural","EXTRA"]
[null,"dms_TradingName_List","dms_TradingNameFull_List","dms_ABN_List","dms_JurisdictionList","dms_Sector_List","dms_Segment_List","dms_FormControl_List","dms_RPT_List","dms_RPTMonth_List","dms_CRCPlength_List","dms_FRCPlength_List","dms_663_List","dms_DeterminationRef_List","dms_Addr1_List","dms_Addr2_List","dms_Suburb_List","dms_State_List","dms_PostCode_List","dms_PAddr1_List","dms_PAddr2_List","dms_PSuburb_List","dms_PState_List","dms_PPostCode_List","dms_ContactName1_List","dms_ContactPh1_List","dms_ContactEmail_List","dms_CBD_flag","dms_Urban_flag","dms_ShortRural_flag","dms_LongRural_flag","dms_FeederType_5_flag","dms_MAIFI_flag_List","dms_FeederName_1","dms_FeederName_2","dms_FeederName_3","dms_FeederName_4","dms_FeederName_5","dms_Public_Lighting_List","Column1"]
[null,"ActewAGL Distribution","ActewAGL Distribution",76670568688,"ACT","Electricity","Distribution","Revenue cap","Financial","June",5,5,5,"2014-19 Distribution Determination","40 Bunda Street",null,"CANBERRA","ACT",2600,"GPO BOX 366",null,"CANBERRA","ACT",2601,"Robert Walker","02 6248 3847","robert.walker@actewagle.com.au","NO","YES","YES","NO","NO",null,"CBD","Urban","Short rural","Long rural",null,"NO","ActewAGL Distribution"]
[null,"ActewAGL Distribution (Tx Assets)","ActewAGL Distribution (Tx Assets)",76670568688,"ACT","Electricity","Distribution","Revenue cap","Financial","June",5,5,5,"distribution determination","40 Bunda Street",null,"CANBERRA","ACT",2600,"GPO BOX 366",null,"CANBERRA","ACT",2601,"Robert Walker","02 6248 3847","robert.walker@actewagle.com.au","NO","YES","YES","NO","NO",null,"CBD","Urban","Short rural","Long rural",null,"NO","ActewAGL Distribution (Tx Assets)"]
[null,"ActewAGL Gas","ActewAGL Gas",76670568688,"ACT","Gas","Distribution","Weighted average price cap","Financial","June",5,5,"x",null,"40 Bunda Street",null,"CANBERRA","ACT",2600,"GPO BOX 366",null,"CANBERRA","ACT",2601,"Philip Deamer","02 6248 3438","GasAAReview@actewagl.com.au","NO","NO","NO","NO","NO",null,"CBD","Urban","Short rural","Long rural",null,"NO","ActewAGL Gas"]
[null,"AEMO","Australian Energy Market Operator Ltd",94072010327,"Vic","Electricity","Transmission","-","Financial","March",5,5,"x","-","Level 22","530 Collins Street","MELBOURNE","VIC",3000,"GPO Box 2008",null,"MELBOURNE","VIC",3001,null,null,null,"NO","NO","NO","NO","NO",null,"CBD","Urban","Short rural","Long rural",null,"NO","AEMO"]
[null,"AGN (Albury and Victoria)","Australian Gas Networks Limited (reporting data for Albury and Victoria)",19078551685,"Vic","Gas","Distribution","Weighted average price cap","Calendar","December",5,5,"x",null,"Level 6","400 King William Street","ADELAIDE","SA",5000,"PO Box 6468","Halifax Street","ADELAIDE","SA",5000,"Craig de Laine","08 8418 1129 ","craig.delaine@agn.com.au","NO","NO","NO","NO","NO",null,"CBD","Urban","Short rural","Long rural",null,"NO","AGN (Albury)"]
[null,"AGN (Albury)","Australian Gas Networks Limited (reporting data for Albury)",19078551685,"Vic","Gas","Distribution","Weighted average price cap","Calendar","December",5,5,"x",null,"Level 6","400 King William Street","ADELAIDE","SA",5000,"PO Box 6468","Halifax Street","ADELAIDE","SA",5000,"Craig de Laine","08 8418 1129 ","craig.delaine@agn.com.au","NO","NO","NO","NO","NO",null,"CBD","Urban","Short rural","Long rural",null,"NO"]
[null,"AGN (SA)","Australian Gas Networks Limited (reporting data for SA)",19078551685,"SA","Gas","Distribution","Weighted average price cap","Financial","June",5,5,5,"distribution determination","Level 6","400 King William Street","ADELAIDE","SA",5000,"PO Box 6468","Halifax Street","ADELAIDE","SA",5000,"Craig de Laine","08 8418 1129 ","craig.delaine@agn.com.au","NO","NO","NO","NO","NO",null,"CBD","Urban","Short rural","Long rural",null,"NO","AGN (SA)"]
[null,"AGN (Victoria)","Australian Gas Networks Limited (reporting data for Victoria)",19078551685,"Vic","Gas","Distribution","Weighted average price cap","Calendar","December",5,5,"x",null,"Level 6","400 King William Street","ADELAIDE","SA",5000,"PO Box 6468","Halifax Street","ADELAIDE","SA",5000,"Craig de Laine","08 8418 1129 ","craig.delaine@agn.com.au","NO","NO","NO","NO","NO",null,"CBD","Urban","Short rural","Long rural",null,"NO","AGN (Victoria)"]
[null,"Amadeus","APT Pipelines (NT) Pty Ltd",39009737393,"NT","Gas","Transmission","Weighted average price cap","Financial","June",5,5,"x","n/a","Level 19, HSBC Building","580 George Street","SYDNEY","NSW",2000,"Level 19, HSBC Building","580 George Street","SYDNEY","NSW",2000,"Alexandra Curran","02 9275 0020","alexandra.curran@apa.com.au","NO","NO","NO","NO","NO",null,"CBD","Urban","Short rural","Long rural",null,"NO","Amadeus"]
[null,"APA GasNet","APA GasNet Australia (Operations) Pty Ltd","065083009","Vic","Gas","Transmission","Weighted average price cap","Calendar","December",5,5,"x",null,"Level 19, HSBC Building","580 George Street","SYDNEY","NSW",2000,"PO Box R41",null,"ROYAL EXCHANGE","NSW",1225,"Alexandra Curran","02 9275 0020","alexandra.curran@apa.com.au","NO","NO","NO","NO","NO",null,"CBD","Urban","Short rural","Long rural",null,"NO","APA GasNet"]
[null,"Ausgrid","Ausgrid",78508211731,"NSW","Electricity","Distribution","Revenue cap","Financial","June",5,5,5,"2014-19 Distribution Determination","570 George St",null,"SYDNEY","NSW",2000,"GPO Box 4009",null,"SYDNEY","NSW",2001,"John Thomson","02 9269 2312","john.thomson@ausgrid.com.au","YES","YES","YES","YES","NO",null,"CBD","Urban","Short rural","Long rural",null,"YES","Ausgrid"]
[null,"Ausgrid (Tx Assets)","Ausgrid (Tx Assets)",67505337385,"NSW","Electricity","Distribution","Revenue cap","Financial","June",5,5,5,"distribution determination","570 George St",null,"SYDNEY","NSW",2000,"GPO Box 4009",null,"SYDNEY","NSW",2001,"John Thomson","02 9269 2312","john.thomson@ausgrid.com.au","YES","YES","YES","YES","NO",null,"CBD","Urban","Short rural","Long rural",null,"NO","Ausgrid (Tx Assets)"]
[null,"AusNet (D)","AusNet Electricity Services Pty Ltd",91064651118,"Vic","Electricity","Distribution","Revenue cap","Calendar","December",5,5,2,"2016-20 Distribution Determination","Level 32","2 Southbank Boulevard","SOUTHBANK","Vic",3006,"Locked Bag 14051",null,"MELBOURNE CITY MAIL CENTRE","VIC",8001,"please provide contact details",null,null,"NO","YES","YES","YES","NO",null,"CBD","Urban","Short rural","Long rural",null,"YES","AusNet (D)"]
[null,"AusNet (Gas)","AusNet Gas Services","086015036","Vic","Gas","Distribution","Weighted average price cap","Calendar","December",5,5,"X",null,"Level 19, HSBC Building","580 George Street","SYDNEY","NSW",2000,"PO Box R41",null,"ROYAL EXCHANGE","NSW",1225,"Alexandra Curran","02 9275 0020","alexandra.curran@apa.com.au","NO","NO","NO","NO","NO",null,"CBD","Urban","Short rural","Long rural",null,"NO","AusNet (Gas)"]
[null,"AusNet (T)","Ausnet Services (Transmission) Ltd",48116124362,"Vic","Electricity","Transmission","Revenue cap","Financial","March",5,5,2,"transmission determination","Level 32","2 Southbank Boulevard","SOUTHBANK","Vic",3006,"Locked Bag 14051",null,"MELBOURNE CITY MAIL CENTRE","Vic",8001,"Clare Thompson","03 9695 6670","clare.e.thompson@ausnetservices.com.au","NO","NO","NO","NO","NO",null,"CBD","Urban","Short rural","Long rural",null,"NO","AusNet (T)"]
[null,"Australian Distribution Co.","Australian Distribution Co.",11222333444,"-","Electricity","Distribution","Revenue cap","Financial","June",5,5,2,"distribution determination","123 Straight Street",null,"SYDNEY","NSW",2000,"PO Box 123",null,"SYDNEY","NSW",2000,"Bob Smith","02 1234 5678","bob@auselec.net.au","YES","YES","YES","YES","NO",null,"CBD","Urban","Short rural","Long rural",null,"YES","Australian Distribution Co."]
[null,"Australian Distribution Co. (Gas)","Australian Gas Distribution Co. ",11222333444,"NSW","Gas","Distribution","Weighted average price cap","Financial","June",5,5,null,null,"123 Straight Street",null,"SYDNEY","NSW",2000,"PO Box 123",null,"SYDNEY","NSW",2000,"Bob Smith","02 1234 5678","bob@auselec.net.au","NO","NO","NO","NO","NO",null,"CBD","Urban","Short rural","Long rural",null,"NO","Australian Distribution Co. (Vic)"]
[null,"Australian Distribution Co. (Vic)","Australian Distribution Co. (Victoria)",11222333444,"Vic","Electricity","Distribution","Revenue cap","Calendar","December",5,5,2,"distribution determination","123 Straight Street",null,"MELBOURNE","Vic",3000,"PO Box 123",null,"MELBOURNE","VIC",3000,"Bob Smith","02 1234 5678","bob@auselec.net.au","NO","NO","NO","NO","NO",null,"CBD","Urban","Short rural","Long rural",null,"YES","Australian Distribution Co. (Vic)"]
[null,"Australian Transmission Co.","Australian Transmission Co.",11222333444,"-","Electricity","Transmission","Revenue cap","Financial","June",5,5,5,"transmission determination","123 Straight Street",null,"SYDNEY","NSW",2000,"PO Box 123",null,"SYDNEY","NSW",2000,"Bob Smith","02 1234 5678","bob@auselec.net.au","NO","NO","NO","NO","NO",null,"CBD","Urban","Short rural","Long rural",null,"NO","Australian Transmission Co."]
[null,"Central Ranges Pipeline (D)","Central Ranges Pipeline Pty Ltd",108218355,"NSW","Gas","Distribution","Weighted average price cap","Financial","June",15,5,5,"distribution determination","Level 19","580 George Street","SYDNEY","NSW",2000,"PO Box R41",null,"ROYAL EXCHANGE","NSW",1225,"Scott Young","02 9275 0031","scott.young@apa.com.au","NO","NO","NO","NO","NO",null,"CBD","Urban","Short rural","Long rural",null,"NO"]
[null,"Central Ranges Pipeline (T)","Central Ranges Pipeline Pty Ltd",108218355,"NSW","Gas","Distribution","Weighted average price cap","Financial","June",14,5,5,"transmission determination","Level 19","580 George Street","SYDNEY","NSW",2000,"PO Box R41",null,"ROYAL EXCHANGE","NSW",1225,"Scott Young","02 9275 0031","scott.young@apa.com.au","NO","NO","NO","NO","NO",null,"CBD","Urban","Short rural","Long rural",null,"NO"]
[null,"CitiPower","CitiPower",76064651056,"Vic","Electricity","Distribution","Revenue cap","Calendar","December",5,5,2,"2016-20 Distribution Determination","40 Market Street",null,"MELBOURNE","Vic",3000,"Locked Bag 14090",null,"MELBOURNE","VIC",8001,"Hannah Williams","03 9683 4088","hwilliams@powercor.com.au","YES","YES","NO","NO","NO",null,"CBD","Urban","Short rural","Long rural",null,"YES","CitiPower"]
[null,"Directlink","Directlink",16779340889,"Qld","Electricity","Transmission","Revenue cap","Financial","June",9,5,5,"transmission determination","Level 19, HSBC Building","580 George Street","SYDNEY","NSW",2000,"PO Box R41",null,"ROYAL EXCHANGE","NSW",1225,"Scott Young","02 9275 0031","scott.young@apa.com.au","NO","NO","NO","NO","NO",null,"CBD","Urban","Short rural","Long rural",null,"NO","Directlink"]
[null,"ElectraNet","ElectraNet",41094482416,"SA","Electricity","Transmission","Revenue cap","Financial","June",5,5,5,"transmission determination","52-55 East Terrace","Rymill Park","ADELAIDE","SA",5000,"PO Box 7096","Hutt Street Post Office","ADELAIDE","SA",5000,"Bill Jackson","08 8404 7969","jackson.bill@electranet.com.au","NO","NO","NO","NO","NO",null,"CBD","Urban","Short rural","Long rural",null,"NO","ElectraNet"]
[null,"Endeavour Energy","Endeavour Energy",11247365823,"NSW","Electricity","Distribution","Revenue cap","Financial","June",5,5,5,"2014-19 Distribution Determination","51 Huntingwood Drive",null,"HUNTINGWOOD","NSW",2148,"PO Box 811",null,"SEVEN HILLS","NSW",1730,"Jon Hocking","02 9853 4386 / 0407 348 156","Jon.Hocking@Endeavourenergy.com.au","NO","YES","YES","YES","NO",null,"CBD","Urban","Short rural","Long rural",null,"YES","Endeavour Energy"]
[null,"Energex","Energex",40078849055,"Qld","Electricity","Distribution","Revenue cap","Financial","June",5,5,5,"2015-20 Distribution Determination","26 Reddacliff Street",null,"NEWSTEAD","Qld",4006,"26 Reddacliff Street",null,"NEWSTEAD","QLD",4006,"Jenny Doyle, Group Manager Regulatory Affairs","(07) 3851 6416","jenny.doyle@ergon.com.au","YES","YES","YES","NO","NO",null,"CBD","Urban","Short rural","Long rural",null,"YES","Energex"]
[null,"Ergon Energy","Ergon Energy",50087646062,"Qld","Electricity","Distribution","Revenue cap","Financial","June",5,5,5,"2015-20 Distribution Determination","22 Walker Street",null,"TOWNSVILLE","Qld",4810,"Po Box 264",null,"FORTITUDE VALLEY","QLD",4006,"Jenny Doyle, Group Manager Regulatory Affairs","(07) 3851 6416","jenny.doyle@ergon.com.au","NO","YES","YES","YES","NO",null,"CBD","Urban","Short rural","Long rural",null,"YES","Ergon Energy"]
[null,"Essential Energy","Essential Energy",37428185226,"NSW","Electricity","Distribution","Revenue cap","Financial","June",5,5,5,"2014-19 Distribution Determination","8 Buller Street",null,"PORT MACQUARIE","NSW",2444,"PO Box 5730",null,"PORT MACQUARIE","NSW",2444,"Catherine Waddell","02 6338 3553","catherine.waddell@essentialenergy.com.au","NO","NO","YES","YES","NO",null,"CBD","Urban","Short rural","Long rural",null,"YES","Essential Energy"]
[null,"Jemena Electricity","Jemena Electricity",82064651083,"Vic","Electricity","Distribution","Revenue cap","Calendar","December",5,5,2,"2016-20 Distribution Determination","Level 16","567 Collins Street","MELBOURNE","VIC",3000,"PO Box 16182",null,"MELBOURNE","VIC",8001,"Matthew Serpell","03 9173 8231","matthew.serpell@jemena.com.au","NO","YES","YES","NO","NO",null,"CBD","Urban","Short rural","Long rural",null,"YES","Jemena Electricity"]
[null,"JGN","Jemena Gas Networks (NSW) Ltd","003 004 322","NSW","Gas","Distribution","Weighted average price cap","Financial","June",5,5,null,null,null,null,null,null,null,null,null,null,null,null,"please provide contact details",null,null,"NO","NO","NO","NO","NO",null,"CBD","Urban","Short rural","Long rural",null,"NO","JGN"]
[null,"Multinet Gas","Multinet Gas (DB No.1) Pty Ltd (ACN 086 026 986), Multinet Gas (DB No.2) Pty Ltd (ACN 086 230 122)","086026986","Vic","Gas","Distribution","Weighted average price cap","Calendar","December",5,5,"x",null,"43-45 Centreway",null,"MT WAVERLEY","Vic",3149,null,null,null,null,null,"Andrew Schille","03 8846 9860","andrew.schille@ue.com.au","NO","NO","NO","NO","NO",null,"CBD","Urban","Short rural","Long rural",null,"NO","Multinet Gas"]
[null,"Murraylink","Murraylink",79181207909,"SA","Electricity","Transmission","Revenue cap","Financial","June",5,5,5,"transmission determination","Level 19","580 George Street","SYDNEY","NSW",2000,"PO Box R41",null,"ROYAL EXCHANGE","NSW",1225,"Scott Young","02 9275 0031","scott.young@apa.com.au","NO","NO","NO","NO","NO",null,"CBD","Urban","Short rural","Long rural",null,"NO","Murraylink"]
[null,"Power and Water","Power and Water Corporation",15947352360,"NT","Electricity","Distribution","Revenue cap","Financial","June",5,5,"x","distribution determination","GPO Box 1921",null,"DARWIN","NT",801,"GPO Box 1921",null,"DARWIN","NT",801,"Lucy Moon","08 8924 5822","Lucy.Moon@powerwater.com.au","YES","YES","YES","YES","NO",null,"CBD","Urban","Short rural","Long rural",null,"NO","Power and Water"]
[null,"Powercor Australia","Powercor Australia",89064651109,"Vic","Electricity","Distribution","Revenue cap","Calendar","December",5,5,2,"2016-20 Distribution Determination","40 Market Street",null,"MELBOURNE","Vic",3000,"Locked bag 14090",null,"MELBOURNE","VIC",8001,"Hannah Williams","03 9683 4088","hwilliams@powercor.com.au","NO","NO","YES","YES","NO",null,"CBD","Urban","Short rural","Long rural",null,"YES","Powercor Australia"]
[null,"Powerlink","Queensland Electricity Transmission Corporation Limited trading as Powerlink Queensland",82078849233,"Qld","Electricity","Transmission","Revenue cap","Financial","June",5,5,5,"transmission determination","33 Harold St",null,"VIRGINIA","Qld",4014,"PO Box 1193",null,"VIRGINIA","QLD",4014,"Jennifer Harris","07 3860 2667","jharris@powerlink.com.au","NO","NO","NO","NO","NO",null,"CBD","Urban","Short rural","Long rural",null,"NO","Powerlink"]
[null,"Roma to Brisbane Pipeline","APT Petroleum Pipelines Limited t/a Roma to Brisbane Pipeline","009 737 393","Qld","Gas","Transmission","Weighted average price cap","Financial","June",5,5,"x","n/a","580 George Street",null,"SYDNEY","NSW",2000,"PO Box R41",null,"ROYAL EXCHANGE","NSW",1225,"Mark Allen","02 9275 0010","mark.allen@apa.com.au","NO","NO","NO","NO","NO",null,"CBD","Urban","Short rural","Long rural",null,"NO","Roma to Brisbane Pipeline"]
[null,"SA Power Networks","SA Power Networks",13332330749,"SA","Electricity","Distribution","Revenue cap","Financial","June",5,5,5,"2015-20 Distribution Determination","1 Anzac Highway",null,"KESWICK","SA",5035,"GPO Box 77",null,"ADELAIDE","SA",5000,"Richard Sibly","08 8404 5613","richard.sibly@sapowernetworks.com.au","NO","NO","YES","YES","NO",null,"CBD","Urban","Short rural","Long rural",null,"NO","SA Power Networks"]
[null,"TasNetworks (D)","TasNetworks (D)",24167357299,"Tas","Electricity","Distribution","Revenue cap","Financial","June",5,5,5,"distribution determination","1-7 Maria Street",null,"LENAH VALLEY","Tas",7008,"PO Box 606",null,"MOONAH","Tas",7009,"John Sayers","03 6271 6469","john.sayers@tasnetworks.com.au","YES","YES","YES","YES","YES",null,"Critical Infrastructure","High density commercial","Urban","High density rural","Low density rural","YES","TasNetworks (D)"]
[null,"TasNetworks (T)","TasNetworks (T)",24167357299,"Tas","Electricity","Transmission","Revenue cap","Financial","June",5,5,5,"transmission determination","1-7 Maria Street",null,"LENAH VALLEY","Tas",7008,"PO Box 606",null,"MOONAH","Tas",7009,"John Sayers","03 6271 6469","john.sayers@tasnetworks.com.au","NO","NO","NO","NO","NO",null,"CBD","Urban","Short rural","Long rural",null,"NO","TasNetworks (T)"]
[null,"TransGrid","NSW Electricity Networks Operations Pty Ltd trading as TransGrid","70 250 995 390","NSW","Electricity","Transmission","Revenue cap","Financial","June",4,5,5,"transmission determination","180 Thomas Street",null,"SYDNEY","NSW",2000,"PO Box A1000",null,"SYDNEY SOUTH","NSW",1235,"Garrie Chubb","0408 210 221","garrie.chubb@transgrid.com.au","NO","NO","NO","NO","NO",null,"CBD","Urban","Short rural","Long rural",null,"NO","TransGrid"]
[null,"United Energy","United Energy",70064651029,"Vic","Electricity","Distribution","Revenue cap","Calendar","December",5,5,2,"2016-20 Distribution Determination","Level 3","6 Nexus Court","MULGRAVE","Vic",3149,"PO Box 449",null,"MOUNT WAVERLEY","VIC",3170,"Mathew Abraham","03 8846 9758","mathew.abraham@ue.com.au","NO","NO","YES","NO","NO",null,"CBD","Urban","Short rural","Long rural",null,"YES","United Energy"]
[]
[]
[null,null,null,null,null,null,null,null,null,null,null,null,null,null,null,null,null,null,null,null,null,null,null,null,null,"For EB & Reset RINs only",null,null,null,null,"For AARs only"]
[null,"The Reg Year Ending (dms_RYE) must be set to the last year of the regulatory period. For forecast data is is usually (FRCP_y5) for actual it is a single year (CRY). For historical actual data the RYE will need to be set manually in the business details sheet by setting the dms_Multiyear_flag to 1 and putting the correct value in 'dms_Specified_FinalYear. See cells C67:C68",null,null,null,null,null,null,null,null,null,null,null,"Drop down selector box for CA & Reset RINs.","For CA & Reset RINs only",null,null,null,null,null,null,null,null,null,null,"for DNSP only",null,null,null,null,"For DNSPs only"]
[null,"dms_Model_List ","dms_Worksheet_List",null,"dms_RYE_Formula_Result",null,null,null,null,null,null,null,null,"dms_0203_ProjectType","dms_020303_01_UOM","dms_020501_01_UOM","dms_020501_02_UOM","dms_020501_03_UOM","dms_020501_04_UOM","dms_020603_01_UOM","dms_020701_01_UOM","dms_020701_02_UOM","dms_020701_01_Rows","dms_040102_01_UOM","dms_040102_04_UOM","dms_030601_01_UOM","dms_030601_02_UOM","dms_030701_01_UOM","dms_030702_01_UOM","dms_030703_01_UOM","dms_030605_UOM","dms_03060703_UOM"]
[null,"ARR","ANNUAL REPORTING STATEMENT",null,{"$f":"LEFT(dms_SingleYear_FinalYear_Result,2)&RIGHT(dms_SingleYear_FinalYear_Result,2)","v":"2009"},"=LEFT(dms_SingleYear_FinalYear_Result,2)&RIGHT(dms_SingleYear_FinalYear_Result,2)",null,"Formula errors are OK",null,null,null,null,null,"New line on new route - single circuit","Circuit line length in km","0's","0's","0's","0's","0's","km","km","Route line length within zone","0's","days","minutes/customer","minutes/customer","Customer / km","%","km","number","number"]
[null,"CA","CATEGORY ANALYSIS",null,{"$f":"LEFT(dms_SingleYear_FinalYear_Result,2)&RIGHT(dms_SingleYear_FinalYear_Result,2)","v":"2009"},"=LEFT(dms_SingleYear_FinalYear_Result,2)&RIGHT(dms_SingleYear_FinalYear_Result,2)",null,"Formula errors are OK",null,null,null,null,null,"New line on new route - dual circuit","Circuit line length in km","0's","0's","0's","0's","0's","0's","0's","Number of maintenance spans","0's","0's","minutes/customer","minutes/customer","MWh/customer","Number of spans",null,"number","number"]
[null,"CPI","CPI",null,null,null,null,null,null,null,null,null,null,"New line on new route - other","Circuit line length in km","MVA added","MVA added","MVA added","MVA added","0's","km","km","Total length of maintenance spans","0's","$0s","interruptions/customer","interruptions/customer","kVA / customer","Number of spans",null,"number","number"]
[null,"EB","ECONOMIC BENCHMARKING",null,{"$f":"LEFT(dms_SingleYear_FinalYear_Result,2)&RIGHT(dms_SingleYear_FinalYear_Result,2)","v":"2009"},"=LEFT(dms_SingleYear_FinalYear_Result,2)&RIGHT(dms_SingleYear_FinalYear_Result,2)",null,"Formula errors are OK",null,null,null,null,null,"Line rebuild over existing route - single circuit","Circuit line length in km","0's","0's","0's","0's","0's","km","km","Length of vegetation corridors","$0s","0's","interruptions/customer","interruptions/customer",null,"Number of spans",null,"number","number"]
[null,"PTRM","POST TAX REVENUE MODEL",null,{"$f":"LEFT(dms_MultiYear_FinalYear_Result,2)&RIGHT(dms_MultiYear_FinalYear_Result,2)","v":"2018"},"=LEFT(dms_MultiYear_FinalYear_Result,2)&RIGHT(dms_MultiYear_FinalYear_Result,2)",null,null,null,null,null,null,null,"Line rebuild over existing route - dual circuit","Number","total spend $0s","total spend $0s","total spend $0s","total spend $0s","(per cent)","0's","0's","Average number of trees per maintenance span",null,null,null,null,null,"Number of spans",null,"number","(per cent)"]
[null,"Reset","REGULATORY REPORTING STATEMENT",null,{"$f":"LEFT(dms_MultiYear_FinalYear_Result,2)&RIGHT(dms_MultiYear_FinalYear_Result,2)","v":"2018"},"=LEFT(dms_MultiYear_FinalYear_Result,2)&RIGHT(dms_MultiYear_FinalYear_Result,2)",null,"Formula errors are OK",null,null,null,null,null,"Reconductor - Single circuit","Number","net circuit km added","net circuit km added","net circuit km added","net circuit km added",null,"years","years","Average frequency of cutting cycle",null,null,null,null,null,"Years",null,"number"]
[null,"RFM","ROLL FORWARD MODEL",null,{"$f":"LEFT(dms_CRCP_FinalYear_Result,2)&RIGHT(dms_CRCP_FinalYear_Result,2)","v":"2018"},"=LEFT(dms_CRCP_FinalYear_Result,2)&RIGHT(dms_CRCP_FinalYear_Result,2)",null,null,null,null,null,null,null,"Reconductor - Dual circuit","Number","total spend $0s","total spend $0s","total spend $0s","total spend $0s",null,null,null,null,null,null,null,null,null,"Years",null,"number"]
[null,"WACC","WEIGHTED AVERAGE COST OF CAPITAL",null,{"$f":"LEFT(dms_MultiYear_FinalYear_Result,2)&RIGHT(dms_MultiYear_FinalYear_Result,2)","v":"2018"},"=LEFT(dms_MultiYear_FinalYear_Result,2)&RIGHT(dms_MultiYear_FinalYear_Result,2)",null,null,null,null,null,null,null,"Other",null,"net circuit km added","net circuit km added","net circuit km added","net circuit km added",null,null,null,null,null,null,null,null,null,"Trees",null,"number"]
[null,null,null,null,null,null,null,null,null,null,null,null,null,null,null,"total spend $0s","total spend $0s","total spend $0s","total spend $0s",null,null,null,null,null,null,null,null,null,"Trees",null,"number"]
[null,"dms_DataQuality_List",null,null,null,null,null,null,null,null,null,null,null,null,null,"0's",null,"$0s",null,null,null,null,null,null,null,null,null,null,"Defects",null,"number"]
[null,"Actual",null,null,null,null,null,null,null,null,null,null,null,null,null,"0's",null,null,null,null,null,null,null,null,null,null,null,null,"Defects",null,"number"]
[null,"Estimate",null,null,null,null,null,null,null,null,null,null,null,null,null,"0's",null,null,null,null,null,null,null,null,null,null,null,null,"Spans",null,"number"]
[null,"Consolidated",null,null,null,null,null,null,null,null,null,null,null,null,null,"$0s",null,null,null,null,null,null,null,null,null,null,null,null,"km",null,"(per cent)"]
[null,"Recast",null,null,null,null,null,null,null,null,null,null,null,null,null,null,null,null,null,null,null,null,null,null,null,null,null,null,"Spans",null,"(per cent)",""]
[null,"Public"]
[]
[null,"For all files either AER or business needs to be able to specify the type of submission","For PTRM & RFM templates we must provide a choice in case they change their form of control - otherwise it is drawn from the business specific lookup table above.",null,null,null,null,null,null,null,null,null,null,null,"For PTRM files - this field set the text for the named range \"DMS_Xfactor\" which in all cases is simply the text \"x factors\" - this saves putting in each old gas PTRM file ",null,null,null,null,null,null,null,null,null,null,"for TNSP only"]
[null,"dms_SourceList","dms_FormControl_Choices",null,null,null,null,null,null,null,null,null,null,null,"DMS_Xfactor",null,null,null,null,null,null,null,null,null,null,"dms_030601_01_UOM",null,"dms_030701_01_UOM","dms_030702_01_UOM"]
[null,"After appeal","Revenue cap",null,null,null,null,null,null,null,null,null,null,null,"x factors",null,null,null,null,null,null,null,null,null,null,"%",null,"Number of spans","km"]
[null,"Draft decision","Revenue yield",null,null,null,null,null,null,null,null,null,null,null,null,null,null,null,null,null,null,null,null,null,null,"number",null,"Years","%"]
[null,"Final decision","Weighted average price cap",null,null,null,null,null,null,null,null,null,null,null,null,null,null,null,null,null,null,null,null,null,null,"number",null,"Trees","km"]
[null,"PTRM update 1",null,null,null,null,null,null,null,null,null,null,null,null,null,null,null,null,null,null,null,null,null,null,null,"%",null,"Defects","number"]
[null,"PTRM update 2",null,null,null,null,null,null,null,null,null,null,null,null,null,null,null,null,null,null,null,null,null,null,null,"number",null,"Number of spans"]
[null,"PTRM update 3",null,null,null,null,null,null,null,null,null,null,null,null,null,null,null,null,null,null,null,null,null,null,null,"number",null,"km"]
[null,"PTRM update 4",null,null,null,null,null,null,null,null,null,null,null,null,null,null,null,null,null,null,null,null,null,null,null,"%",null,"km"]
[null,"PTRM update 5",null,null,null,null,null,null,null,null,null,null,null,null,null,null,null,null,null,null,null,null,null,null,null,"number",null,"Number of spans"]
[null,"PTRM update 6",null,null,null,null,null,null,null,null,null,null,null,null,null,null,null,null,null,null,null,null,null,null,null,"number"]
[null,"PTRM update 7",null,null,null,null,null,null,null,null,null,null,null,null,null,null,null,null,null,null,null,null,null,null,null,"%"]
[null,"Regulatory proposal",null,null,null,null,null,null,null,null,null,null,null,null,null,null,null,null,null,null,null,null,null,null,null,"number"]
[null,"Reporting",null,null,null,null,null,null,null,null,null,null,null,null,null,null,null,null,null,null,null,null,null,null,null,"%"]
[null,"Revised regulatory proposal",null,null,null,null,null,null,null,null,null,null,null,null,null,null,null,null,null,null,null,null,null,null,null,"number"]
[null,null,null,null,null,null,null,null,null,null,null,null,null,null,null,null,null,null,null,null,null,null,null,null,null,"%"]
[null,null,null,null,null,null,null,null,null,null,null,null,null,null,null,null,null,null,null,null,null,null,null,null,null,"number"]
[]
[]
[]
[null,"Reason for interruption","dms_Reason_Interruption_Detailed","dms_Reason_Interruption","dms_STPIS_Exclusion_List","dms_020301_ProjectType_List","dms_020302_ProjectType_List"]
[null,"Animal","Animal impact","Animal","Weather","New substation establishment","New line on new route - single circuit"]
[null,null,"Animal nesting/burrowing, etc and other","Asset failure","Equipment failure","Capacity upgrade","New line on new route - dual circuit"]
[null,null,"Other","Other","Operational error","Voltage upgrade","New line on new route - other"]
[null,"Asset failure","LV","Overloads","Vegetation","Other","Line rebuild over existing route - single circuit"]
[null,null,"Distribution substation","Planned","Animals",null,"Line rebuild over existing route - dual circuit"]
[null,null,"HV","Network business","Third party impacts",null,"Reconductor - Single circuit"]
[null,null,"Zone substation","Third party","Transmission failure",null,"Reconductor - Dual circuit"]
[null,null,"Subtransmission","Unknown","Load shedding",null,"Reconductor - Other"]
[null,"Other","insert description of 'other'","Vegetation","Inter-distributor connection failure",null,"Line upgrade - raising/retensoring"]
[null,"Overloads","-","Weather","Other",null,"Line upgrade - voltage upgrade"]
[null,"Planned","-","2 - STPIS Exclusion (3.3)(a)",null,null,"Line upgrade - capacity"]
[null,"Network business","Network error","3 - STPIS Exclusion (3.3)(a)",null,null,"String spare circuit"]
[null,null,"Switching and protection error","4 - STPIS Exclusion (3.3)(a)",null,null,"Other"]
[null,"Third party","Fire","5 - STPIS Exclusion (3.3)(a)"]
[null,null,"Other","6 - STPIS Exclusion (3.3)(a)"]
[null,null,"Dig-in","7 - STPIS Exclusion (3.3)(a)"]
[null,null,"Unauthorised access"]
[null,null,"Vehicle impact"]
[null,"Unknown","Unknown"]
[null,"Vegetation","Blow-in/Fall-in - NSP responsibility"]
[null,null,"Grow-in - NSP responsibility"]
[null,null,"Blow-in/Fall-in - Other responsible party"]
[null,null,"Grow-in - Other responsible party"]
[null,"Weather"]
[null,"2 - STPIS Exclusion (3.3)(a)"]
[null,"3 - STPIS Exclusion (3.3)(a)"]
[null,"4 - STPIS Exclusion (3.3)(a)"]
[null,"5 - STPIS Exclusion (3.3)(a)"]
[null,"6 - STPIS Exclusion (3.3)(a)"]
[null,"7 - STPIS Exclusion (3.3)(a)"]
[]
[]
[]
[]
[]
[]
[]
[null,"These are indeces and lookup values for various dates. All step from the value placed in FRCP_y1 on the business and other details worksheet",null,null,null,null,null,null,null,null,null,null,null,null,"These date tables are currently used in the Recast templates to provide column headings and conditional formatting"]
[null,"dms_FRCPlength_Num_List","dms_FinalYear_List","dms_CRCPlength_Num_List","dms_CFinalYear_List","dms_FRCP_years",null,"dms_CRCP_years",null,"dms_CRCP_index",null,"dms_Financial_Years","dms_Calendar_Years",null,"CRY from input cell on business sheet","CRY - financial","dms_FinYears","CRY calendar","dms_CalYears"]
[null,1,"dms_FRCP_y1",1,"CRCP_y1",{"$f":"FRCP_y1","v":"2020-21"},"dms_FRCP_y1",{"$f":"IF(dms_RPT=\"financial\",VALUE(LEFT(dms_FRCP_y1,4)-1)&\"-\"&TEXT(VALUE(MID(dms_FRCP_y1,3,2)),\"00\"),VALUE(LEFT(dms_FRCP_y1,4)-1))","v":"2019-20"},"dms_CRCP_yZ",1,null,"2005-06","2006",null,{"$f":"CRY","v":"2008-09"},{"$f":"VALUE(LEFT(CRY,4))&\"-\"&TEXT(MID(CRY,3,2)+1,\"00\")","v":"2008-09"},"dms_CRYf_y1",{"$f":"VALUE(LEFT(CRY,4)+1)","v":2009},"dms_CRYc_y1"]
[null,2,"dms_FRCP_y2",2,"CRCP_y2",{"$f":"IF(dms_RPT=\"financial\",VALUE(LEFT(dms_FRCP_y1,4)+1)&\"-\"&TEXT(VALUE(RIGHT(dms_FRCP_y1,2)+1),\"00\"),VALUE(LEFT(dms_FRCP_y1,4)+1))","v":"2021-22"},"dms_FRCP_y2",{"$f":"IF(dms_RPT=\"financial\",VALUE(LEFT(dms_CRCP_yZ,4)-1)&\"-\"&TEXT(VALUE(MID(dms_CRCP_yZ,3,2)),\"00\"),VALUE(LEFT(dms_CRCP_yZ,4)-1))","v":"2018-19"},"dms_CRCP_yY",2,null,"2006-07","2007",null,null,{"$f":"VALUE(LEFT(dms_CRYf_y1,4)+1)&\"-\"&TEXT(MID(dms_CRYf_y1,3,2)+2,\"00\")","v":"2009-10"},"dms_CRYf_y2",{"$f":"VALUE(LEFT(dms_CRYc_y1,4)+1)","v":2010},"dms_CRYc_y2"]
[null,3,"dms_FRCP_y3",3,"CRCP_y3",{"$f":"IF(dms_RPT=\"financial\",VALUE(LEFT(dms_FRCP_y2,4)+1)&\"-\"&TEXT(VALUE(RIGHT(dms_FRCP_y2,2)+1),\"00\"),VALUE(LEFT(dms_FRCP_y2,4)+1))","v":"2022-23"},"dms_FRCP_y3",{"$f":"IF(dms_RPT=\"financial\",VALUE(LEFT(dms_CRCP_yY,4)-1)&\"-\"&TEXT(VALUE(MID(dms_CRCP_yY,3,2)),\"00\"),VALUE(LEFT(dms_CRCP_yY,4)-1))","v":"2017-18"},"dms_CRCP_yX",3,null,"2007-08","2008",null,null,{"$f":"VALUE(LEFT(dms_CRYf_y2,4)+1)&\"-\"&TEXT(MID(dms_CRYf_y2,3,2)+2,\"00\")","v":"2010-11"},"dms_CRYf_y3",{"$f":"VALUE(LEFT(dms_CRYc_y2,4)+1)","v":2011},"dms_CRYc_y3"]
[null,4,"dms_FRCP_y4",4,"CRCP_y4",{"$f":"IF(dms_RPT=\"financial\",VALUE(LEFT(dms_FRCP_y3,4)+1)&\"-\"&TEXT(VALUE(RIGHT(dms_FRCP_y3,2)+1),\"00\"),VALUE(LEFT(dms_FRCP_y3,4)+1))","v":"2023-24"},"dms_FRCP_y4",{"$f":"IF(dms_RPT=\"financial\",VALUE(LEFT(dms_CRCP_yX,4)-1)&\"-\"&TEXT(VALUE(MID(dms_CRCP_yX,3,2)),\"00\"),VALUE(LEFT(dms_CRCP_yX,4)-1))","v":"2016-17"},"dms_CRCP_yW",4,null,"2008-09","2009",null,null,{"$f":"VALUE(LEFT(dms_CRYf_y3,4)+1)&\"-\"&TEXT(MID(dms_CRYf_y3,3,2)+2,\"00\")","v":"2011-12"},"dms_CRYf_y4",{"$f":"VALUE(LEFT(dms_CRYc_y3,4)+1)","v":2012},"dms_CRYc_y4"]
[null,5,"dms_FRCP_y5",5,"CRCP_y5",{"$f":"IF(dms_RPT=\"financial\",VALUE(LEFT(dms_FRCP_y4,4)+1)&\"-\"&TEXT(VALUE(RIGHT(dms_FRCP_y4,2)+1),\"00\"),VALUE(LEFT(dms_FRCP_y4,4)+1))","v":"2024-25"},"dms_FRCP_y5",{"$f":"IF(dms_RPT=\"financial\",VALUE(LEFT(dms_CRCP_yW,4)-1)&\"-\"&TEXT(VALUE(MID(dms_CRCP_yW,3,2)),\"00\"),VALUE(LEFT(dms_CRCP_yW,4)-1))","v":"2015-16"},"dms_CRCP_yV",5,null,"2009-10",2010,null,null,{"$f":"VALUE(LEFT(dms_CRYf_y4,4)+1)&\"-\"&TEXT(MID(dms_CRYf_y4,3,2)+2,\"00\")","v":"2012-13"},"dms_CRYf_y5",{"$f":"VALUE(LEFT(dms_CRYc_y4,4)+1)","v":2013},"dms_CRYc_y5"]
[null,6,"dms_FRCP_y6",6,"CRCP_y6",{"$f":"IF(dms_RPT=\"financial\",VALUE(LEFT(dms_FRCP_y5,4)+1)&\"-\"&TEXT(VALUE(RIGHT(dms_FRCP_y5,2)+1),\"00\"),VALUE(LEFT(dms_FRCP_y5,4)+1))","v":"2025-26"},"dms_FRCP_y6",{"$f":"IF(dms_RPT=\"financial\",VALUE(LEFT(dms_CRCP_yV,4)-1)&\"-\"&TEXT(VALUE(MID(dms_CRCP_yV,3,2)),\"00\"),VALUE(LEFT(dms_CRCP_yV,4)-1))","v":"2014-15"},"dms_CRCP_yU",6,null,"2010-11",2011,null,null,{"$f":"VALUE(LEFT(dms_CRYf_y5,4)+1)&\"-\"&TEXT(MID(dms_CRYf_y5,3,2)+2,\"00\")","v":"2013-14"},"dms_CRYf_y6",{"$f":"VALUE(LEFT(dms_CRYc_y5,4)+1)","v":2014},"dms_CRYc_y6"]
[null,7,"dms_FRCP_y7",7,"CRCP_y7",{"$f":"IF(dms_RPT=\"financial\",VALUE(LEFT(dms_FRCP_y6,4)+1)&\"-\"&TEXT(VALUE(RIGHT(dms_FRCP_y6,2)+1),\"00\"),VALUE(LEFT(dms_FRCP_y6,4)+1))","v":"2026-27"},"dms_FRCP_y7",{"$f":"IF(dms_RPT=\"financial\",VALUE(LEFT(dms_CRCP_yU,4)-1)&\"-\"&TEXT(VALUE(MID(dms_CRCP_yU,3,2)),\"00\"),VALUE(LEFT(dms_CRCP_yU,4)-1))","v":"2013-14"},"dms_CRCP_yT",7,null,"2011-12",2012,null,null,{"$f":"VALUE(LEFT(dms_CRYf_y6,4)+1)&\"-\"&TEXT(MID(dms_CRYf_y6,3,2)+2,\"00\")","v":"2014-15"},"dms_CRYf_y7",{"$f":"VALUE(LEFT(dms_CRYc_y6,4)+1)","v":2015},"dms_CRYc_y7"]
[null,8,"dms_FRCP_y8",8,"CRCP_y8",{"$f":"IF(dms_RPT=\"financial\",VALUE(LEFT(dms_FRCP_y7,4)+1)&\"-\"&TEXT(VALUE(RIGHT(dms_FRCP_y7,2)+1),\"00\"),VALUE(LEFT(dms_FRCP_y7,4)+1))","v":"2027-28"},"dms_FRCP_y8",{"$f":"IF(dms_RPT=\"financial\",VALUE(LEFT(dms_CRCP_yT,4)-1)&\"-\"&TEXT(VALUE(MID(dms_CRCP_yT,3,2)),\"00\"),VALUE(LEFT(dms_CRCP_yT,4)-1))","v":"2012-13"},"dms_CRCP_yS",8,null,"2012-13",2013,null,null,{"$f":"VALUE(LEFT(dms_CRYf_y7,4)+1)&\"-\"&TEXT(MID(dms_CRYf_y7,3,2)+2,\"00\")","v":"2015-16"},"dms_CRYf_y8",{"$f":"VALUE(LEFT(dms_CRYc_y7,4)+1)","v":2016},"dms_CRYc_y8"]
[null,9,"dms_FRCP_y9",9,"CRCP_y9",{"$f":"IF(dms_RPT=\"financial\",VALUE(LEFT(dms_FRCP_y8,4)+1)&\"-\"&TEXT(VALUE(RIGHT(dms_FRCP_y8,2)+1),\"00\"),VALUE(LEFT(dms_FRCP_y8,4)+1))","v":"2028-29"},"dms_FRCP_y9",{"$f":"IF(dms_RPT=\"financial\",VALUE(LEFT(dms_CRCP_yS,4)-1)&\"-\"&TEXT(VALUE(MID(dms_CRCP_yS,3,2)),\"00\"),VALUE(LEFT(dms_CRCP_yS,4)-1))","v":"2011-12"},"dms_CRCP_yR",9,null,"2013-14",2014,null,null,{"$f":"VALUE(LEFT(dms_CRYf_y8,4)+1)&\"-\"&TEXT(MID(dms_CRYf_y8,3,2)+2,\"00\")","v":"2016-17"},"dms_CRYf_y9",{"$f":"VALUE(LEFT(dms_CRYc_y8,4)+1)","v":2017},"dms_CRYc_y9"]
[null,10,"dms_FRCP_y10",10,"CRCP_y10",{"$f":"IF(dms_RPT=\"financial\",VALUE(LEFT(dms_FRCP_y9,4)+1)&\"-\"&TEXT(VALUE(RIGHT(dms_FRCP_y9,2)+1),\"00\"),VALUE(LEFT(dms_FRCP_y9,4)+1))","v":"2029-30"},"dms_FRCP_y10",{"$f":"IF(dms_RPT=\"financial\",VALUE(LEFT(dms_CRCP_yR,4)-1)&\"-\"&TEXT(VALUE(MID(dms_CRCP_yR,3,2)),\"00\"),VALUE(LEFT(dms_CRCP_yR,4)-1))","v":"2010-11"},"dms_CRCP_yQ",10,null,"2014-15",2015,null,null,{"$f":"VALUE(LEFT(dms_CRYf_y9,4)+1)&\"-\"&TEXT(MID(dms_CRYf_y9,3,2)+2,\"00\")","v":"2017-18"},"dms_CRYf_y10",{"$f":"VALUE(LEFT(dms_CRYc_y9,4)+1)","v":2018},"dms_CRYc_y10"]
[null,11,"dms_FRCP_y11",11,"CRCP_y11",{"$f":"IF(dms_RPT=\"financial\",VALUE(LEFT(dms_FRCP_y10,4)+1)&\"-\"&TEXT(VALUE(RIGHT(dms_FRCP_y10,2)+1),\"00\"),VALUE(LEFT(dms_FRCP_y10,4)+1))","v":"2030-31"},"dms_FRCP_y11",{"$f":"IF(dms_RPT=\"financial\",VALUE(LEFT(dms_CRCP_yQ,4)-1)&\"-\"&TEXT(VALUE(MID(dms_CRCP_yQ,3,2)),\"00\"),VALUE(LEFT(dms_CRCP_yQ,4)-1))","v":"2009-10"},"dms_CRCP_yP",11,null,"2015-16",2016,null,null,{"$f":"VALUE(LEFT(dms_CRYf_y10,4)+1)&\"-\"&TEXT(MID(dms_CRYf_y10,3,2)+2,\"00\")","v":"2018-19"},"dms_CRYf_y11",{"$f":"VALUE(LEFT(dms_CRYc_y10,4)+1)","v":2019},"dms_CRYc_y11"]
[null,12,"dms_FRCP_y12",12,"CRCP_y12",{"$f":"IF(dms_RPT=\"financial\",VALUE(LEFT(dms_FRCP_y11,4)+1)&\"-\"&TEXT(VALUE(RIGHT(dms_FRCP_y11,2)+1),\"00\"),VALUE(LEFT(dms_FRCP_y11,4)+1))","v":"2031-32"},"dms_FRCP_y12",{"$f":"IF(dms_RPT=\"financial\",VALUE(LEFT(dms_CRCP_yP,4)-1)&\"-\"&TEXT(VALUE(MID(dms_CRCP_yP,3,2)),\"00\"),VALUE(LEFT(dms_CRCP_yP,4)-1))","v":"2008-09"},"dms_CRCP_yO",12,null,"2016-17",2017,null,null,{"$f":"VALUE(LEFT(dms_CRYf_y11,4)+1)&\"-\"&TEXT(MID(dms_CRYf_y11,3,2)+2,\"00\")","v":"2019-20"},"dms_CRYf_y12",{"$f":"VALUE(LEFT(dms_CRYc_y11,4)+1)","v":2020},"dms_CRYc_y12"]
[null,13,"dms_FRCP_y13",13,"CRCP_y13",{"$f":"IF(dms_RPT=\"financial\",VALUE(LEFT(dms_FRCP_y12,4)+1)&\"-\"&TEXT(VALUE(RIGHT(dms_FRCP_y12,2)+1),\"00\"),VALUE(LEFT(dms_FRCP_y12,4)+1))","v":"2032-33"},"dms_FRCP_y13",{"$f":"IF(dms_RPT=\"financial\",VALUE(LEFT(dms_CRCP_yO,4)-1)&\"-\"&TEXT(VALUE(MID(dms_CRCP_yO,3,2)),\"00\"),VALUE(LEFT(dms_CRCP_yO,4)-1))","v":"2007-08"},"dms_CRCP_yN",13,null,"2017-18",2018,null,null,{"$f":"VALUE(LEFT(dms_CRYf_y12,4)+1)&\"-\"&TEXT(MID(dms_CRYf_y12,3,2)+2,\"00\")","v":"2020-21"},"dms_CRYf_y13",{"$f":"VALUE(LEFT(dms_CRYc_y12,4)+1)","v":2021},"dms_CRYc_y13"]
[null,14,"dms_FRCP_y14",14,"CRCP_y14",{"$f":"IF(dms_RPT=\"financial\",VALUE(LEFT(dms_FRCP_y13,4)+1)&\"-\"&TEXT(VALUE(RIGHT(dms_FRCP_y13,2)+1),\"00\"),VALUE(LEFT(dms_FRCP_y13,4)+1))","v":"2033-34"},"dms_FRCP_y14",{"$f":"IF(dms_RPT=\"financial\",VALUE(LEFT(dms_CRCP_yN,4)-1)&\"-\"&TEXT(VALUE(MID(dms_CRCP_yN,3,2)),\"00\"),VALUE(LEFT(dms_CRCP_yN,4)-1))","v":"2006-07"},"dms_CRCP_yM",14,null,"2018-19",2019,null,null,{"$f":"VALUE(LEFT(dms_CRYf_y13,4)+1)&\"-\"&TEXT(MID(dms_CRYf_y13,3,2)+2,\"00\")","v":"2021-22"},"dms_CRYf_y14",{"$f":"VALUE(LEFT(dms_CRYc_y13,4)+1)","v":2022},"dms_CRYc_y14"]
[null,15,"dms_FRCP_y15",15,"CRCP_y15",{"$f":"IF(dms_RPT=\"financial\",VALUE(LEFT(dms_FRCP_y14,4)+1)&\"-\"&TEXT(VALUE(RIGHT(dms_FRCP_y14,2)+1),\"00\"),VALUE(LEFT(dms_FRCP_y14,4)+1))","v":"2034-35"},"dms_FRCP_y15",{"$f":"IF(dms_RPT=\"financial\",VALUE(LEFT(dms_CRCP_yM,4)-1)&\"-\"&TEXT(VALUE(MID(dms_CRCP_yM,3,2)),\"00\"),VALUE(LEFT(dms_CRCP_yM,4)-1))","v":"2005-06"},"dms_CRCP_yL",15,null,"2019-20",2020,null,null,{"$f":"VALUE(LEFT(dms_CRYf_y14,4)+1)&\"-\"&TEXT(MID(dms_CRYf_y14,3,2)+2,\"00\")","v":"2022-23"},"dms_CRYf_y15",{"$f":"VALUE(LEFT(dms_CRYc_y14,4)+1)","v":2023},"dms_CRYc_y15"]
[null,null,null,null,null,null,null,null,null,null,null,"2020-21",2021,null,null,{"$f":"VALUE(LEFT(dms_CRYf_y15,4)+1)&\"-\"&TEXT(MID(dms_CRYf_y15,3,2)+2,\"00\")","v":"2023-24"},"dms_CRYf_y16",{"$f":"VALUE(LEFT(dms_CRYc_y15,4)+1)","v":2024},"dms_CRYc_y16"]
[null,"These are drop down lists for businesses to select the correct FRCP_y1 on the business and other details worksheet.\nThis also populates the column headings in the worksheets",null,null,null,null,null,null,null,null,null,"2021-22",2022,null,null,{"$f":"VALUE(LEFT(dms_CRYf_y16,4)+1)&\"-\"&TEXT(MID(dms_CRYf_y16,3,2)+2,\"00\")","v":"2024-25"},"dms_CRYf_y17",{"$f":"VALUE(LEFT(dms_CRYc_y16,4)+1)","v":2025},"dms_CRYc_y17"]
[null,"dms_RCP_fyear_list","dms_CRY_ListF","dms_CRY_ListC","dms_RCP_cyear_list","dms_FRCP_fyear_list","dms_FRCP_ListF","dms_FRCP_ListC","dms_FRCP_cyear_list",null,null,"2022-23",2023,null,null,{"$f":"VALUE(LEFT(dms_CRYf_y17,4)+1)&\"-\"&TEXT(MID(dms_CRYf_y17,3,2)+2,\"00\")","v":"2025-26"},"dms_CRYf_y18",{"$f":"VALUE(LEFT(dms_CRYc_y17,4)+1)","v":2026},"dms_CRYc_y18"]
[null,"dms_y1",{"$f":"CRY","v":"2008-09"},{"$f":"CRY","v":"2008-09"},"dms_cy1","dms_frcp_fy1","2010-11",2011,"dms_crcp_cy1",null,null,"2023-24",2024,null,null,{"$f":"VALUE(LEFT(dms_CRYf_y18,4)+1)&\"-\"&TEXT(MID(dms_CRYf_y18,3,2)+2,\"00\")","v":"2026-27"},"dms_CRYf_y19",{"$f":"VALUE(LEFT(dms_CRYc_y18,4)+1)","v":2027},"dms_CRYc_y19"]
[null,"dms_y2",{"$f":"IF(dms_RPT=\"financial\",VALUE(LEFT(CRY,4)+1)&\"-\"&TEXT(MID(CRY,3,2)+2,\"00\"),VALUE(LEFT(CRY,4)+1))","v":"2009-10"},{"$f":"IF(dms_RPT=\"financial\",VALUE(LEFT(CRY,4)+1)&\"-\"&TEXT(MID(CRY,3,2)+2,\"00\"),VALUE(LEFT(CRY,4)+1))","v":"2009-10"},"dms_cy2","dms_frcp_fy2","2011-12",2012,"dms_crcp_cy2",null,null,"2024-25",2025,null,null,{"$f":"VALUE(LEFT(dms_CRYf_y19,4)+1)&\"-\"&TEXT(MID(dms_CRYf_y19,3,2)+2,\"00\")","v":"2027-28"},"dms_CRYf_y20",{"$f":"VALUE(LEFT(dms_CRYc_y19,4)+1)","v":2028},"dms_CRYc_y20"]
[null,"dms_y3",{"$f":"IF(dms_RPT=\"financial\",VALUE(LEFT(dms_fy2,4)+1)&\"-\"&TEXT(MID(dms_fy2,3,2)+2,\"00\"),VALUE(LEFT(dms_fy2,4)+1))","v":"2010-11"},{"$f":"IF(dms_RPT=\"financial\",VALUE(LEFT(dms_fy2,4)+1)&\"-\"&TEXT(MID(dms_fy2,3,2)+2,\"00\"),VALUE(LEFT(dms_fy2,4)+1))","v":"2010-11"},"dms_cy3","dms_frcp_fy3","2012-13",2013,"dms_crcp_cy3",null,null,"2025-26",2026]
[null,"dms_y4",{"$f":"IF(dms_RPT=\"financial\",VALUE(LEFT(dms_fy3,4)+1)&\"-\"&TEXT(MID(dms_fy3,3,2)+2,\"00\"),VALUE(LEFT(dms_fy3,4)+1))","v":"2011-12"},{"$f":"IF(dms_RPT=\"financial\",VALUE(LEFT(dms_fy3,4)+1)&\"-\"&TEXT(MID(dms_fy3,3,2)+2,\"00\"),VALUE(LEFT(dms_fy3,4)+1))","v":"2011-12"},"dms_cy4","dms_frcp_fy4","2013-14",2014,"dms_crcp_cy4",null,null,"2026-27",2027]
[null,"dms_y5",{"$f":"IF(dms_RPT=\"financial\",VALUE(LEFT(dms_fy4,4)+1)&\"-\"&TEXT(MID(dms_fy4,3,2)+2,\"00\"),VALUE(LEFT(dms_fy4,4)+1))","v":"2012-13"},{"$f":"IF(dms_RPT=\"financial\",VALUE(LEFT(dms_fy4,4)+1)&\"-\"&TEXT(MID(dms_fy4,3,2)+2,\"00\"),VALUE(LEFT(dms_fy4,4)+1))","v":"2012-13"},"dms_cy5","dms_frcp_fy5","2014-15",2015,"dms_crcp_cy5",null,null,"2027-28",2028]
[null,"dms_y6",{"$f":"IF(dms_RPT=\"financial\",VALUE(LEFT(dms_fy5,4)+1)&\"-\"&TEXT(MID(dms_fy5,3,2)+2,\"00\"),VALUE(LEFT(dms_fy5,4)+1))","v":"2013-14"},{"$f":"IF(dms_RPT=\"financial\",VALUE(LEFT(dms_fy5,4)+1)&\"-\"&TEXT(MID(dms_fy5,3,2)+2,\"00\"),VALUE(LEFT(dms_fy5,4)+1))","v":"2013-14"},"dms_cy6","dms_frcp_fy6","2015-16",2016,"dms_crcp_cy6",null,null,"2028-29",2029]
[null,"dms_y7",{"$f":"IF(dms_RPT=\"financial\",VALUE(LEFT(dms_fy6,4)+1)&\"-\"&TEXT(MID(dms_fy6,3,2)+2,\"00\"),VALUE(LEFT(dms_fy6,4)+1))","v":"2014-15"},{"$f":"IF(dms_RPT=\"financial\",VALUE(LEFT(dms_fy6,4)+1)&\"-\"&TEXT(MID(dms_fy6,3,2)+2,\"00\"),VALUE(LEFT(dms_fy6,4)+1))","v":"2014-15"},"dms_cy7","dms_frcp_fy7","2016-17",2017,"dms_crcp_cy7",null,null,"2029-30",2030]
[null,"dms_y8",{"$f":"IF(dms_RPT=\"financial\",VALUE(LEFT(dms_fy7,4)+1)&\"-\"&TEXT(MID(dms_fy7,3,2)+2,\"00\"),VALUE(LEFT(dms_fy7,4)+1))","v":"2015-16"},{"$f":"IF(dms_RPT=\"financial\",VALUE(LEFT(dms_fy7,4)+1)&\"-\"&TEXT(MID(dms_fy7,3,2)+2,\"00\"),VALUE(LEFT(dms_fy7,4)+1))","v":"2015-16"},"dms_cy8","dms_frcp_fy8","2017-18",2018,"dms_crcp_cy8",null,null,"2030-31",2031]
[null,"dms_y9",{"$f":"IF(dms_RPT=\"financial\",VALUE(LEFT(dms_fy8,4)+1)&\"-\"&TEXT(MID(dms_fy8,3,2)+2,\"00\"),VALUE(LEFT(dms_fy8,4)+1))","v":"2016-17"},{"$f":"IF(dms_RPT=\"financial\",VALUE(LEFT(dms_fy8,4)+1)&\"-\"&TEXT(MID(dms_fy8,3,2)+2,\"00\"),VALUE(LEFT(dms_fy8,4)+1))","v":"2016-17"},"dms_cy9","dms_frcp_fy9","2018-19",2019,"dms_crcp_cy9",null,null,"2031-32",2032]
[null,"dms_y10",{"$f":"IF(dms_RPT=\"financial\",VALUE(LEFT(dms_fy9,4)+1)&\"-\"&TEXT(MID(dms_fy9,3,2)+2,\"00\"),VALUE(LEFT(dms_fy9,4)+1))","v":"2017-18"},{"$f":"IF(dms_RPT=\"financial\",VALUE(LEFT(dms_fy9,4)+1)&\"-\"&TEXT(MID(dms_fy9,3,2)+2,\"00\"),VALUE(LEFT(dms_fy9,4)+1))","v":"2017-18"},"dms_cy10","dms_frcp_fy10","2019-20",2020,"dms_crcp_cy10",null,null,"2032-33",2033]
[null,"dms_y11",{"$f":"IF(dms_RPT=\"financial\",VALUE(LEFT(dms_fy10,4)+1)&\"-\"&TEXT(MID(dms_fy10,3,2)+2,\"00\"),VALUE(LEFT(dms_fy10,4)+1))","v":"2018-19"},{"$f":"IF(dms_RPT=\"financial\",VALUE(LEFT(dms_fy10,4)+1)&\"-\"&TEXT(MID(dms_fy10,3,2)+2,\"00\"),VALUE(LEFT(dms_fy10,4)+1))","v":"2018-19"},"dms_cy11","dms_frcp_fy11","2020-21",2021,"dms_crcp_cy11",null,null,"2033-34",2034]
[null,"dms_y12",{"$f":"IF(dms_RPT=\"financial\",VALUE(LEFT(dms_fy11,4)+1)&\"-\"&TEXT(MID(dms_fy11,3,2)+2,\"00\"),VALUE(LEFT(dms_fy11,4)+1))","v":"2019-20"},{"$f":"IF(dms_RPT=\"financial\",VALUE(LEFT(dms_fy11,4)+1)&\"-\"&TEXT(MID(dms_fy11,3,2)+2,\"00\"),VALUE(LEFT(dms_fy11,4)+1))","v":"2019-20"},"dms_cy12","dms_frcp_fy12","2021-22",2022,"dms_crcp_cy12",null,null,"2034-35",2035]
[null,"dms_y13",{"$f":"IF(dms_RPT=\"financial\",VALUE(LEFT(dms_fy12,4)+1)&\"-\"&TEXT(MID(dms_fy12,3,2)+2,\"00\"),VALUE(LEFT(dms_fy12,4)+1))","v":"2020-21"},{"$f":"IF(dms_RPT=\"financial\",VALUE(LEFT(dms_fy12,4)+1)&\"-\"&TEXT(MID(dms_fy12,3,2)+2,\"00\"),VALUE(LEFT(dms_fy12,4)+1))","v":"2020-21"},"dms_cy13","dms_frcp_fy13","2022-23",2023,"dms_crcp_cy13",null,null,"2035-36",2036]
[null,"dms_y14",{"$f":"IF(dms_RPT=\"financial\",VALUE(LEFT(dms_fy13,4)+1)&\"-\"&TEXT(MID(dms_fy13,3,2)+2,\"00\"),VALUE(LEFT(dms_fy13,4)+1))","v":"2021-22"},{"$f":"IF(dms_RPT=\"financial\",VALUE(LEFT(dms_fy13,4)+1)&\"-\"&TEXT(MID(dms_fy13,3,2)+2,\"00\"),VALUE(LEFT(dms_fy13,4)+1))","v":"2021-22"},"dms_cy14","dms_frcp_fy14","2023-24",2024,"dms_crcp_cy14"]
[null,"dms_y15",{"$f":"IF(dms_RPT=\"financial\",VALUE(LEFT(dms_fy14,4)+1)&\"-\"&TEXT(MID(dms_fy14,3,2)+2,\"00\"),VALUE(LEFT(dms_fy14,4)+1))","v":"2022-23"},{"$f":"IF(dms_RPT=\"financial\",VALUE(LEFT(dms_fy14,4)+1)&\"-\"&TEXT(MID(dms_fy14,3,2)+2,\"00\"),VALUE(LEFT(dms_fy14,4)+1))","v":"2022-23"},"dms_cy15","dms_frcp_fy15","2024-25",2025,"dms_crcp_cy15"]
[null,"dms_y16",{"$f":"IF(dms_RPT=\"financial\",VALUE(LEFT(dms_fy15,4)+1)&\"-\"&TEXT(MID(dms_fy15,3,2)+2,\"00\"),VALUE(LEFT(dms_fy15,4)+1))","v":"2023-24"},{"$f":"IF(dms_RPT=\"financial\",VALUE(LEFT(dms_fy15,4)+1)&\"-\"&TEXT(MID(dms_fy15,3,2)+2,\"00\"),VALUE(LEFT(dms_fy15,4)+1))","v":"2023-24"},"dms_cy16"]
[null,"dms_y17",{"$f":"IF(dms_RPT=\"financial\",VALUE(LEFT(dms_fy16,4)+1)&\"-\"&TEXT(MID(dms_fy16,3,2)+2,\"00\"),VALUE(LEFT(dms_fy16,4)+1))","v":"2024-25"},{"$f":"IF(dms_RPT=\"financial\",VALUE(LEFT(dms_fy16,4)+1)&\"-\"&TEXT(MID(dms_fy16,3,2)+2,\"00\"),VALUE(LEFT(dms_fy16,4)+1))","v":"2024-25"},"dms_cy17"]
[null,"dms_y18",{"$f":"IF(dms_RPT=\"financial\",VALUE(LEFT(dms_fy17,4)+1)&\"-\"&TEXT(MID(dms_fy17,3,2)+2,\"00\"),VALUE(LEFT(dms_fy17,4)+1))","v":"2025-26"},{"$f":"IF(dms_RPT=\"financial\",VALUE(LEFT(dms_fy17,4)+1)&\"-\"&TEXT(MID(dms_fy17,3,2)+2,\"00\"),VALUE(LEFT(dms_fy17,4)+1))","v":"2025-26"},"dms_cy18"]
[null,"dms_y19",{"$f":"IF(dms_RPT=\"financial\",VALUE(LEFT(dms_fy18,4)+1)&\"-\"&TEXT(MID(dms_fy18,3,2)+2,\"00\"),VALUE(LEFT(dms_fy18,4)+1))","v":"2026-27"},{"$f":"IF(dms_RPT=\"financial\",VALUE(LEFT(dms_fy18,4)+1)&\"-\"&TEXT(MID(dms_fy18,3,2)+2,\"00\"),VALUE(LEFT(dms_fy18,4)+1))","v":"2026-27"},"dms_cy19"]
[null,"dms_y20",{"$f":"IF(dms_RPT=\"financial\",VALUE(LEFT(dms_fy19,4)+1)&\"-\"&TEXT(MID(dms_fy19,3,2)+2,\"00\"),VALUE(LEFT(dms_fy19)+1))","v":"2027-28"},{"$f":"IF(dms_RPT=\"financial\",VALUE(LEFT(dms_fy19,4)+1)&\"-\"&TEXT(MID(dms_fy19,3,2)+2,\"00\"),VALUE(LEFT(dms_fy19)+1))","v":"2027-28"},"dms_cy20"]
[]
[]
[]
[]
[]
[null,"These \"row descriptions\" are the column headings in the various templates but become row descriptions in the ETL process"]
[null,null,"Table 6.3 sustained interruptions - row descriptions"]
[null,null,"dms_060301_CustNo_Affected_Row","dms_060301_Avg_Duration_Sustained_Int_Row","dms_060301_Effect_unplanned_SAIDI_Row","dms_060301_Effect_unplanned_SAIFI_Row"]
[null,null,"Number of customers affected by the interruption","Average duration of sustained customer interruption","Effect on unplanned SAIDI","Effect on unplanned SAIFI"]
[]
[]
[]
[null,null,"Table 6.1 telephone answering - row descriptions and start date"]
[null,null,"dms_060101_Rows","dms_060102_Rows","dms_060101_StartDateTxt"]
[null,null,"Total number of calls \n(after removing excluded events)","Number of calls answered within 30 seconds \n(after excluding excluded events) ",{"$f":"dms_060701_StartDateTxt","v":"1-Jul-2008"}]
[]
[]
[]
[null,null,null,null,null,null,null,"dms_0603_FeederList",{"$f":"INDEX(dms_FeederName_1,MATCH(dms_TradingName,dms_TradingName_List))","v":"CBD"},{"$f":"INDEX(dms_FeederName_2,MATCH(dms_TradingName,dms_TradingName_List))","v":"Urban"},{"$f":"INDEX(dms_FeederName_3,MATCH(dms_TradingName,dms_TradingName_List))","v":"Short rural"},{"$f":"INDEX(dms_FeederName_4,MATCH(dms_TradingName,dms_TradingName_List))","v":"Long rural"}]
[null,null,"Table 6.7.1 - daily performance data - unplanned - MAIFI  -- row descriptions and header named range values"]
[null,null,"These headings (Lists) are determined from the INDEX/MATCH function on the NSP selected on the Business & other details sheet"]
[null,"dms_060701_Feeder_Header_Lvl4",{"$f":"INDEX(dms_FeederName_1,MATCH(dms_TradingName,dms_TradingName_List))","v":"CBD"},{"$f":"INDEX(dms_FeederName_1,MATCH(dms_TradingName,dms_TradingName_List))","v":"CBD"},{"$f":"INDEX(dms_FeederName_2,MATCH(dms_TradingName,dms_TradingName_List))","v":"Urban"},{"$f":"INDEX(dms_FeederName_2,MATCH(dms_TradingName,dms_TradingName_List))","v":"Urban"},{"$f":"INDEX(dms_FeederName_3,MATCH(dms_TradingName,dms_TradingName_List))","v":"Short rural"},{"$f":"INDEX(dms_FeederName_3,MATCH(dms_TradingName,dms_TradingName_List))","v":"Short rural"},{"$f":"INDEX(dms_FeederName_4,MATCH(dms_TradingName,dms_TradingName_List))","v":"Long rural"},{"$f":"INDEX(dms_FeederName_4,MATCH(dms_TradingName,dms_TradingName_List))","v":"Long rural"},{"$f":"IF((INDEX(dms_FeederName_5,MATCH(dms_TradingName,dms_TradingName_List))=0),\"Network\",(INDEX(dms_FeederName_5,MATCH(dms_TradingName,dms_TradingName_List))))","v":"Network"},{"$f":"IF((INDEX(dms_FeederName_5,MATCH(dms_TradingName,dms_TradingName_List))=0),\"Network\",(INDEX(dms_FeederName_5,MATCH(dms_TradingName,dms_TradingName_List))))","v":"Network"},"Network","Network"]
[]
[null,"dms_060701_Rows","All events","After removing excluded events","All events","After removing excluded events","All events","After removing excluded events","All events","After removing excluded events","All events","After removing excluded events","All events","After removing excluded events"]
[null,null,"the number of column headings changes from 10 to 12 depending on the number of feeder categories for the NSP"]
[]
[]
[]
[]
[null,null,"Table 6.8.1 - row descriptions"]
[null,null,"dms_060801_01_Rows","dms_060801_02_Rows","dms_060801_03_Rows","dms_060801_04_Rows"]
[null,null,"Number of interruptions","Duration of interruptions","Total unplanned minutes off supply","Effect on unplanned MAIFI"]
[]
[]
[]
[]
[null,null,"Table 7.9.4 - market impact component - row descriptions"]
[null,"dms_070904_01_Rows","without exclusions","with exclusions"]
[]
[]
[]
[]
[]
[null,null,"Use this to add to existing files"]
[null,null,"ARRs 6.7 STPIS daily performance"]
[null,null,"dms_060101_Values","dms_060102_Values","dms_060701_Values"]
[]
[null,null,"ARR's  6.8 STPIS exclusions"]
[null,null,"dms_060801_Event_Date","dms_060801_OutageID","dms_060801_FeederID","dms_060801_FeederClass","dms_060801_CauseID","dms_060801_01_Values","dms_060801_02_Values","dms_060801_03_Values","dms_060801_Excl_Cat","dms_060801_04_Values"]
[null,null,"dms_060801_StartCell"]
[]
[null,null,"CA 6.3 sustained interruptions"]
[null,null,"dms_060301_Event_Date","dms_060301_Event_Time","dms_060301_AssetID","dms_060301_FeederClass","dms_060301_Reason","dms_060301_DetailedReason","dms_060301_CustNo_Affected_Values","dms_060301_Avg_Duration_Sustained_Int_Values","dms_060301_Effect_unplanned_SAIDI_Values","dms_060301_Effect_unplanned_SAIFI_Values","dms_060301_MED"]

{"sheet":"Instructions","index":1,"n_rows":27,"n_cols":4,"rows_kept":27,"cut":false,"hidden":false,"merged":[[25,2,25,3],[26,2,26,4],[7,2,7,3],[1,1,1,5],[2,1,2,5],[3,2,3,4],[4,2,4,4],[5,2,5,4],[24,2,24,4],[12,2,12,4],[8,2,8,4],[10,2,10,4],[20,2,20,4],[22,2,22,4]]}
[]
[null,{"$f":"CONCATENATE(dms_Segment,\" Network Service Provider\")","v":"Distribution Network Service Provider"}]
[null,"Historical Reporting RIN Template"]
[null,null,{"$f":"CONCATENATE(\"This template is to be used by \",dms_TradingName,\" to fulfil its reporting obligations to the AER.\")","v":"This template is to be used by Energex to fulfil its reporting obligations to the AER."}]
[null,null,"INSTRUCTIONS"]
[null,null,"Complete the Business & other details worksheet before entering data or values in any other worksheets. The Business & other details worksheet is linked to other worksheets within the workbook and automatically generates certain column headings and conditional formatting."]
[]
[null,null,"Identifying CONFIDENTIAL INFORMATION:\n\nPlease use the macro at the top of each \nworksheet to identify confidential information. \n\n"]
[null,null,"-Do this by selecting the cell or cells that contain confidential information and then run the Mark selection CONFIDENTIAL macro. This will format the cells a specific colour that is identified by the AER's database which in turn marks that information as confidential.\n\n-To reverse this, select the cell or cells and run the Return selection to NON-CONFIDENTIAL macro."]
[]
[null,null,"UNITS OF MEASURE\n\nAll amounts are to be unrounded and reported on a one for one basis: that is 1000 is to be entered as '1000'. Applicable units of measure may be identified in the table column headings or row descriptors.\n\n"]
[]
[null,null,"COLOUR CODING OF INPUT / NON-INPUT CELLS:"]
[null,null,null,"Yellow = Input cell (mandatory)"]
[null,null,null,"Darker yellow = input cell (mandatory)"]
[null,null,null,"Orange = input cell (if data available)"]
[null,null,null,"Grey = Not applicable/No inputs required"]
[null,null,null,"\nPLEASE DO NOT ENTER TEXT into cells that are to contain numeric data."]
[]
[]
[null,null,"WORKSHEET NAVIGATION\n\nMany tables in the worksheets have been \"grouped\" to allow for easy navigation. To ungroup or group data use the outline symbols in the left margin of excel (for Row groupings) or above the columns (for column groupings). \n\n\n"]
[]
[null,null,"RETURNING COMPLETED RESPONSES\n\nPlease return two (2) files to the AER: \n1. A confidential version which must contain a complete set of all responses with confidential information marked using the Mark selected cells CONFIDENTIAL macro and which has been completed using the locked template file provided by the AER. \n\n2. A public version with confidential information either removed completely or aggregated in some form together with writtten consent to disclose the public version of the response.\n\nUse the drop down box on the Business and other details worksheet to identify the file as either confidential ('consolidated') or public. "]
[]
[null,null,"SUBMITTING AMENDED DATA TO THE AER\n\nIf an NSP wishes to correct data previously submitted to the AER it should resubmit that data using the original completed submission as the starting point. Please make any necessary changes to the data. Data that is not being amended should be left unchanged. \n\nNSPs must identify the reason for the amendments in the Amendment Reason box on the  Business and other details worksheet. NSPs may provide further details regarding any amendments in the Amendments worksheet. \n\n."]
[null,null,"NSP may use Amended Data macro \nto highlight cells that contain amended data.\nNB: if data is also CONFIDENTIAL, re-apply \nthe Confidentiality macro after applying the \nAmended macro"]
[null,null,"Please resubmit two (2) files - a confidential version and a public version of the amended submission to the AER"]

{"sheet":"Contents","index":2,"n_rows":27,"n_cols":19,"rows_kept":27,"cut":false,"hidden":false,"merged":[]}
[null,"REGULATORY REPORTING STATEMENT"]
[null,{"$f":"INDEX(dms_TradingNameFull_List,MATCH(dms_TradingName,dms_TradingName_List))","v":"Energex"}]
[null,{"$f":"CONCATENATE(\"NEW HISTORICAL CATEGORY ANALYSIS DATA \",CRY,\" TO \",FRY)","v":"NEW HISTORICAL CATEGORY ANALYSIS DATA 2008-09 TO 2017-18"}]
[null,"CONTENTS"]
[]
[]
[null,null,null,null,"1. Business details",null,null,null,null,null,null,"2. Expenditure"]
[]
[]
[]
[]
[]
[]
[]
[]
[]
[]
[]
[]
[]
[]
[]
[]
[]
[]
[]
[null,null,null,null,"4. Alternative control services",null,null,null,null,null,null,"5. Network information",null,null,null,null,null,null,"6. Service & quality"]

{"sheet":"Business & other details","index":3,"n_rows":156,"n_cols":9,"rows_kept":156,"cut":false,"hidden":false,"merged":[[59,2,59,8],[18,4,18,7],[19,2,19,3],[19,4,19,7],[22,2,22,3],[22,4,22,7],[23,4,23,7],[24,2,24,3],[24,4,24,7],[32,1,32,8],[57,2,57,3],[58,4,58,8],[7,1,7,8],[11,1,11,8],[13,2,13,4],[14,2,14,4],[17,2,17,3],[17,4,17,7]]}
[null,"REGULATORY REPORTING STATEMENT"]
[null,{"$f":"INDEX(dms_TradingNameFull_List,MATCH(dms_TradingName,dms_TradingName_List))","v":"Energex"}]
[null,{"$f":"CONCATENATE(\"NEW HISTORICAL CATEGORY ANALYSIS DATA \",CRY,\" TO \",FRY)","v":"NEW HISTORICAL CATEGORY ANALYSIS DATA 2008-09 TO 2017-18"}]
[null,"BUSINESS & OTHER DETAILS"]
[]
[]
[null,"Instructions"]
[null,"Complete the following business details regulatory template before entering data or values in any other regulatory template. This regulatory template is linked to other cells within the spreadsheet and automatically generates column headings and conditional formatting to distinguish business specific input and non-input cells. "]
[]
[null,"SUBMISSION PARTICULARS INPUT SHEETS"]
[]
[null,"ENTITY DETAILS"]
[]
[null,"Short name","Energex",null,null,"Select business name from drop down list first"]
[null,"ACN / ABN",{"$f":"INDEX(dms_ABN_List,MATCH(dms_TradingName,dms_TradingName_List))","v":40078849055}]
[]
[]
[null,"Business address","Address 1",null,{"$f":"INDEX(dms_Addr1_List,MATCH(dms_TradingName,dms_TradingName_List))","v":"26 Reddacliff Street"}]
[null,null,null,"Address 2",{"$f":"IF(ISBLANK(INDEX(dms_Addr2_List,MATCH(dms_TradingName,dms_TradingName_List))),\"\",(INDEX(dms_Addr2_List,MATCH(dms_TradingName,dms_TradingName_List))))","v":""}]
[null,null,"Suburb",null,{"$f":"INDEX(dms_Suburb_List,MATCH(dms_TradingName,dms_TradingName_List))","v":"NEWSTEAD"}]
[null,null,null,"State",{"$f":"INDEX(dms_State_List,MATCH(dms_TradingName,dms_TradingName_List))","v":"Qld"},"p/code",{"$f":"INDEX(dms_PostCode_List,MATCH(dms_TradingName,dms_TradingName_List))","v":4006}]
[]
[null,"Postal address","Address 1",null,{"$f":"INDEX(dms_PAddr1_List,MATCH(dms_TradingName,dms_TradingName_List))","v":"26 Reddacliff Street"}]
[null,null,null,"Address 2",{"$f":"IF(ISBLANK(INDEX(dms_PAddr2_List,MATCH(dms_TradingName,dms_TradingName_List))),\"\",(INDEX(dms_PAddr2_List,MATCH(dms_TradingName,dms_TradingName_List))))","v":""}]
[null,null,"Suburb",null,{"$f":"INDEX(dms_PSuburb_List,MATCH(dms_TradingName,dms_TradingName_List))","v":"NEWSTEAD"}]
[null,null,null,"State",{"$f":"INDEX(dms_PState_List,MATCH(dms_TradingName,dms_TradingName_List))","v":"QLD"},"p/code",{"$f":"INDEX(dms_PPostCode_List,MATCH(dms_TradingName,dms_TradingName_List))","v":4006}]
[]
[]
[null,"Contact name/s","Karen Stafford, Group Manager Legal, Regulation and Pricing"]
[null,"Contact phone/s","07 3851 6793"]
[null,"Contact email address/s","karen.stafford@energyq.com.au"]
[]
[null,"REGULATORY CONTROL PERIODS"]
[]
[null,"Forthcoming regulatory control period","2020-21",{"$f":"dms_FRCP_y2","v":"2021-22"},{"$f":"dms_FRCP_y3","v":"2022-23"},{"$f":"dms_FRCP_y4","v":"2023-24"},{"$f":"dms_FRCP_y5","v":"2024-25"}]
[null,null,{"$f":"dms_FRCP_y6","v":"2025-26"},{"$f":"dms_FRCP_y7","v":"2026-27"},{"$f":"dms_FRCP_y8","v":"2027-28"},{"$f":"dms_FRCP_y9","v":"2028-29"},{"$f":"dms_FRCP_y10","v":"2029-30"}]
[]
[]
[null,"Current regulatory control period",{"$f":"dms_CRCP_FirstYear_Result","v":"2015-16"},{"$f":"IF(dms_RPT=\"financial\",VALUE(LEFT(CRCP_y1,4)+1)&\"-\"&TEXT(MID(CRCP_y1,3,2)+2,\"00\"),VALUE(LEFT(CRCP_y1,4)+1))","v":"2016-17"},{"$f":"IF(dms_RPT=\"financial\",VALUE(LEFT(CRCP_y1,4)+2)&\"-\"&TEXT(VALUE(MID(CRCP_y1,3,2)+3),\"00\"),VALUE(LEFT(CRCP_y1,4)+2))","v":"2017-18"},{"$f":"IF(dms_RPT=\"financial\",VALUE(LEFT(CRCP_y1,4)+3)&\"-\"&TEXT(MID(CRCP_y1,3,2)+4,\"00\"),VALUE(LEFT(CRCP_y1,4)+3))","v":"2018-19"},{"$f":"IF(dms_RPT=\"financial\",VALUE(LEFT(CRCP_y1,4)+4)&\"-\"&TEXT(MID(CRCP_y1,3,2)+5,\"00\"),VALUE(LEFT(CRCP_y1,4)+4))","v":"2019-20"}]
[null,null,{"$f":"IF(dms_RPT=\"financial\",VALUE(LEFT(CRCP_y1,4)+5)&\"-\"&TEXT(MID(CRCP_y1,3,2)+6,\"00\"),VALUE(LEFT(CRCP_y1,4)+5))","v":"2020-21"},{"$f":"IF(dms_RPT=\"financial\",VALUE(LEFT(CRCP_y1,4)+6)&\"-\"&TEXT(MID(CRCP_y1,3,2)+7,\"00\"),VALUE(LEFT(CRCP_y1,4)+6))","v":"2021-22"},{"$f":"IF(dms_RPT=\"financial\",VALUE(LEFT(CRCP_y1,4)+7)&\"-\"&TEXT(MID(CRCP_y1,3,2)+8,\"00\"),VALUE(LEFT(CRCP_y1,4)+7))","v":"2022-23"},{"$f":"IF(dms_RPT=\"financial\",VALUE(LEFT(CRCP_y1,4)+8)&\"-\"&TEXT(MID(CRCP_y1,3,2)+9,\"00\"),VALUE(LEFT(CRCP_y1,4)+8))","v":"2023-24"},{"$f":"IF(dms_RPT=\"financial\",VALUE(LEFT(CRCP_y1,4)+9)&\"-\"&TEXT(MID(CRCP_y1,3,2)+10,\"00\"),VALUE(LEFT(CRCP_y1,4)+9))","v":"2024-25"}]
[null,null,{"$f":"IF(dms_RPT=\"financial\",VALUE(LEFT(CRCP_y1,4)+10)&\"-\"&TEXT(MID(CRCP_y1,3,2)+11,\"00\"),VALUE(LEFT(CRCP_y1,4)+10))","v":"2025-26"},{"$f":"IF(dms_RPT=\"financial\",VALUE(LEFT(CRCP_y1,4)+11)&\"-\"&TEXT(MID(CRCP_y1,3,2)+12,\"00\"),VALUE(LEFT(CRCP_y1,4)+11))","v":"2026-27"},{"$f":"IF(dms_RPT=\"financial\",VALUE(LEFT(CRCP_y1,4)+12)&\"-\"&TEXT(MID(CRCP_y1,3,2)+13,\"00\"),VALUE(LEFT(CRCP_y1,4)+12))","v":"2027-28"},{"$f":"IF(dms_RPT=\"financial\",VALUE(LEFT(CRCP_y1,4)+13)&\"-\"&TEXT(MID(CRCP_y1,3,2)+14,\"00\"),VALUE(LEFT(CRCP_y1,4)+13))","v":"2028-29"},{"$f":"IF(dms_RPT=\"financial\",VALUE(LEFT(CRCP_y1,4)+14)&\"-\"&TEXT(MID(CRCP_y1,3,2)+15,\"00\"),VALUE(LEFT(CRCP_y1,4)+14))","v":"2029-30"}]
[]
[]
[null,"Previous regulatory control period",{"$f":"IF(dms_RPT=\"financial\",VALUE(LEFT(PRCP_y2,4)-1)&\"-\"&TEXT(VALUE(MID(PRCP_y2,3,2)),\"00\"),VALUE(LEFT(PRCP_y2,4)-1))","v":"2010-11"},{"$f":"IF(dms_RPT=\"financial\",VALUE(LEFT(PRCP_y3,4)-1)&\"-\"&TEXT(VALUE(MID(PRCP_y3,3,2)),\"00\"),VALUE(LEFT(PRCP_y3,4)-1))","v":"2011-12"},{"$f":"IF(dms_RPT=\"financial\",VALUE(LEFT(PRCP_y4,4)-1)&\"-\"&TEXT(VALUE(MID(PRCP_y4,3,2)),\"00\"),VALUE(LEFT(PRCP_y4,4)-1))","v":"2012-13"},{"$f":"IF(dms_RPT=\"financial\",VALUE(LEFT(PRCP_y5,4)-1)&\"-\"&TEXT(VALUE(RIGHT(PRCP_y5,2)-1),\"00\"),VALUE(LEFT(PRCP_y5,4)-1))","v":"2013-14"},{"$f":"IF(dms_RPT=\"financial\",VALUE(LEFT(CRCP_y1,4)-1)&\"-\"&TEXT(VALUE(RIGHT(CRCP_y1,2)-1),\"00\"),VALUE(LEFT(CRCP_y1,4)-1))","v":"2014-15"}]
[]
[]
[]
[null,"Commencing regulatory year","2008-09","CRY"]
[]
[null,"Last completed regulatory year","2017-18","dms_FinalYear"]
[]
[]
[]
[null,null,"IF THIS IS AN ABC RIN - make sure the the named range CRY is applied and the named range dms_dollar_nom_UOM is applied"]
[null,null,"IF THIS IS A RESET RIN - make sure the named ranges CRY and dms_dollar_nom_UOM are NOT present in the workbook"]
[null,null,"FOR ABC RINS THAT SPAN MULTIPLE YEARS - make sure MultiYear Flag is set and final year entered as required"]
[]
[null,"Source","Reporting",null,"Please select the correct submission type from the dropdown list."]
[null,"Data quality (actual, estimate, public, consolidated)","Public",null,"Use Consolidated for Consolidated Confidential version\nUse Public for Consolidated Public version"]
[null,"Amended RIN submission - amendment reason","."]
[null,"Submission Date","2019-01-31","dms_SubmissionDate","Please enter date this file submitted to AER (dd/mm/yyyy)"]
[null,"EBSS - First application of scheme in forthcoming period?","No"]
[null,"Sector",{"$f":"INDEX(dms_Sector_List,MATCH(dms_TradingName,dms_TradingName_List))","v":"Electricity"},"dms_Sector","=INDEX(dms_Sector_List,MATCH(dms_TradingName,dms_TradingName_List))"]
[null,"Segment",{"$f":"INDEX(dms_Segment_List,MATCH(dms_TradingName,dms_TradingName_List))","v":"Distribution"},"dms_Segment","=INDEX(dms_Segment_List,MATCH(dms_TradingName,dms_TradingName_List))"]
[null,"Regulatory Year Ending",{"$f":"IF(dms_MultiYear_Flag=1,LEFT(dms_Specified_FinalYear,2)&RIGHT(dms_Specified_FinalYear,2),INDEX(dms_RYE_Formula_Result,MATCH(dms_Model,dms_Model_List)))","v":"2018"},"dms_RYE","=IF(dms_MultiYear_Flag=1,LEFT(dms_Specified_FinalYear,2)&RIGHT(dms_Specified_FinalYear,2),INDEX(dms_RYE_Formula_Result,MATCH(dms_Model,dms_Model_List)))"]
[null,"Reporting Period Type",{"$f":"INDEX(dms_RPT_List,MATCH(dms_TradingName,dms_TradingName_List))","v":"Financial"},"dms_RPT","=INDEX(dms_RPT_List,MATCH(dms_TradingName,dms_TradingName_List))"]
[null,"Model or RIN Type","CA","dms_Model","Drop down selection"]
[null,"EB/CA Unit of Measure for Monetary Values","$0s","dms_dollar_nom_UOM","If the cover sheet is attached to an ABC RIN apply the NAMED RANGE to the cell"]
[null,"Security Classification","Public","dms_Classification","Always Public"]
[null,"Jurisdiction",{"$f":"INDEX(dms_JurisdictionList,MATCH(dms_TradingName,dms_TradingName_List))","v":"Qld"},"dms_Jurisdiction","=INDEX(dms_JurisdictionList,MATCH(dms_TradingName,dms_TradingName_List))"]
[null,"FORECAST and MultiYear RINS"]
[null,"CRY-1  (last full calendar year before CRY)",{"$f":"IF(dms_RPT=\"financial\",VALUE(LEFT(dms_SingleYear_FinalYear_Result,4)),VALUE(LEFT(dms_SingleYear_FinalYear_Result,4)-1))","v":2008},"dms_Cal_Year_B4_CRY","'=IF(dms_RPT=\"financial\",VALUE(LEFT(dms_SingleYear_FinalYear_Result,4)),VALUE(LEFT(dms_SingleYear_FinalYear_Result,4)-1))"]
[null,"Dollar $ real month",{"$f":"INDEX(dms_RPTMonth_List,MATCH(dms_TradingName,dms_TradingName_List))","v":"June"},"dms_RPTMonth","=INDEX(dms_RPTMonth_List,MATCH(dms_TradingName,dms_TradingName_List))"]
[null,"Dollar $ real  (the last month before the FRCP_y1)",{"$f":"IF(SUM(dms_SingleYear_Model)>0,CONCATENATE(dms_RPTMonth)&\" \"&VALUE((LEFT(CRY,2))&RIGHT(CRY,2)),CONCATENATE(dms_RPTMonth)&\" \"&VALUE((LEFT(dms_CRCP_FinalYear_Result,2)&RIGHT(dms_CRCP_FinalYear_Result,2))))","v":"June 2009"},"dms_DollarReal","=IF(SUM(dms_SingleYear_Model)>0,CONCATENATE(dms_RPTMonth)&\" \"&VALUE((LEFT(CRY,2))&RIGHT(CRY,2)),CONCATENATE(dms_RPTMonth)&\" \"&VALUE((LEFT(dms_CRCP_FinalYear_Result,2)&RIGHT(dms_CRCP_FinalYear_Result,2))))"]
[null,"Dollar $ real previous year (PRCP_y5)",{"$f":"IF(SUM(dms_SingleYear_Model)>0,CONCATENATE(dms_RPTMonth)&\" \"&VALUE(((LEFT(CRY,2))&RIGHT(CRY,2))-1),CONCATENATE(dms_RPTMonth)&\" \"&VALUE(((LEFT(dms_CRCP_FirstYear_Result,2)&RIGHT(dms_CRCP_FirstYear_Result,2))))-1)","v":"June 2008"},"dms_DollarReal_Prev","=IF(SUM(dms_SingleYear_Model)>0,CONCATENATE(dms_RPTMonth)&\" \"&VALUE(((LEFT(CRY,2))&RIGHT(CRY,2))-1),CONCATENATE(dms_RPTMonth)&\" \"&VALUE(((LEFT(dms_CRCP_FirstYear_Result,2)&RIGHT(dms_CRCP_FirstYear_Result,2))))-1)"]
[null,"This block works out the various RYE's for ALL RIN types and MODELS"]
[null,"Single Year Model T/F",{"$f":"IF(dms_Model=\"EB\",1,0)","v":0},"dms_EB"]
[null,null,{"$f":"IF(dms_Model=\"CA\",1,0)","v":1},"dms_CA","=dms_SingleYear_Model"]
[null,null,{"$f":"IF(dms_Model=\"ARR\",1,0)","v":0},"dms_ARR"]
[null,"Is this a single Year RIN?",{"$f":"IF(SUM(dms_SingleYear_Model)=1,\"yes\",\"no\")","v":"yes"},null,"=IF(SUM(dms_SingleYear_Model)=1,\"yes\",\"no\")"]
[null,"Single Year Final Year Reference","CRY","dms_SingleYear_FinalYear_Ref","This is the reference for EB, CA & ARR RINs"]
[null,"Single Year Final Year Result",{"$f":"IFERROR(IF(SUM(dms_SingleYear_Model)<>0,(INDIRECT(dms_SingleYear_FinalYear_Ref)),\"not a single year RIN\"),\"CRY not present\")","v":"2008-09"},"dms_SingleYear_FinalYear_Result","=IFERROR(IF(SUM(dms_SingleYear_Model)<>0,(INDIRECT(dms_SingleYear_FinalYear_Ref)),\"not a single year RIN\"),\"CRY not present\")"]
[null,"FRCP length in years",{"$f":"INDEX(dms_FRCPlength_List,MATCH(dms_TradingName,dms_TradingName_List))","v":5},"dms_FRCPlength_Num","=INDEX(dms_FRCPlength_List,MATCH(dms_TradingName,dms_TradingName_List))"]
[null,"Multi Year Final Year Reference",{"$f":"INDEX(dms_FinalYear_List,MATCH(dms_FRCPlength_Num,dms_FRCPlength_Num_List))","v":"dms_FRCP_y5"},"dms_MultiYear_FinalYear_Ref","=INDEX(dms_FinalYear_List,MATCH(dms_FRCPlength_Num,dms_FRCPlength_Num_List))"]
[null,"Multi Year Final Year Result",{"$f":"IF(dms_MultiYear_Flag=0,INDIRECT(dms_MultiYear_FinalYear_Ref),dms_Specified_FinalYear)","v":"2017-18"},"dms_MultiYear_FinalYear_Result","=IF(dms_MultiYear_Flag=0,INDIRECT(dms_MultiYear_FinalYear_Ref),dms_Specified_FinalYear)",null,null,null,"Formula errors OK"]
[null,"CRCP length in years",{"$f":"INDEX(dms_CRCPlength_List,MATCH(dms_TradingName,dms_TradingName_List))","v":5},"dms_CRCPlength_Num","=INDEX(dms_CRCPlength_List,MATCH(dms_TradingName,dms_TradingName_List))"]
[null,"CRCP Final Year Reference",{"$f":"INDEX(dms_CFinalYear_List,MATCH(dms_CRCPlength_Num,dms_CRCPlength_Num_List))","v":"CRCP_y5"},"dms_CRCP_FinalYear_Ref","=INDEX(dms_CFinalYear_List,MATCH(dms_CRCPlength_Num,dms_CRCPlength_Num_List))"]
[null,"CRCP First Year Result",{"$f":"INDEX(dms_CRCP_years,MATCH(dms_CRCPlength_Num,dms_CRCP_index))","v":"2015-16"},"dms_CRCP_FirstYear_Result","=INDEX(dms_CRCP_years,MATCH(dms_CRCPlength_Num,dms_CRCP_index))"]
[null,"CRCP Final Year Result",{"$f":"IF(dms_MultiYear_Flag=0,(IF(SUM(dms_SingleYear_Model)>0,CRY,dms_CRCP_yZ)),dms_Specified_FinalYear)","v":"2017-18"},"dms_CRCP_FinalYear_Result","=IF(dms_MultiYear_Flag=0,(IF(SUM(dms_SingleYear_Model)>0,CRY,dms_CRCP_yZ)),dms_Specified_FinalYear)"]
[null,"PTRM/ RFMs"]
[null,"Form of control",{"$f":"INDEX(dms_FormControl_List,MATCH(dms_TradingName,dms_TradingName_List))","v":"Revenue cap"},"dms_FormControl","=INDEX(dms_FormControl_List,MATCH(dms_TradingName,dms_TradingName_List))"]
[null,"ABC RINS THAT SPAN MULTIPLE YEARS"]
[null,"Is this a multi year ABC RIN?","yes"]
[null,"Multiyear EB, CA or ARR?",{"$f":"IF(dms_MultiYear_ResponseFlag=\"No\",0,1)","v":1},"dms_MultiYear_Flag","This is set from the answer provided above"]
[null,null,{"$f":"IF(dms_MultiYear_Flag=1,FRY,\"not a Multiple year submission\")","v":"2017-18"},"dms_Specified_FinalYear","The result here is returned to dms_CRCP_FinalYear_Result if response to Q in C73 is \"yes\" and dms_MultiYear_Flag is set to 1"]
[null," Start year for 5.2 in Multi year RINS",{"$f":"IF(dms_MultiYear_Flag=1,FRY,CRY)","v":"2017-18"},"dms_0502_Inst_Year","=IF(dms_MultiYear_Flag=1,FRY,CRY)",null,"For single year RINS this is CRY - multi year RINS need to start a the end of the span of years (ie. FRY)"]
[null,"EB RINS"]
[null,"Calendar Year for table 3.6 data",{"$f":"IF(dms_RPT=\"financial\",VALUE(LEFT(dms_SingleYear_FinalYear_Result,4)),VALUE(LEFT(dms_SingleYear_FinalYear_Result,4)-1))","v":2008},"dms_0306_Year","=IF(dms_RPT=\"financial\",VALUE(LEFT(dms_SingleYear_FinalYear_Result,4)),VALUE(LEFT(dms_SingleYear_FinalYear_Result,4)-1))"]
[null,"CA RINS"]
[null,"Find how many rows in tables 6.3 sustained interruptions?",null,null,"dms_060301_MaxRows only returns a valid value when cover sheet is attached to a CA file"]
[null,null,{"$f":"IF(dms_Model<>\"CA\",\"not a CA\",\"Is a CA\")","v":"Is a CA"},null,"=IF(dms_Model<>\"CA\",\"not a CA\",\"Is a CA\")"]
[null,"dms_060301_Avg_Duration_Sustained_Int_Values present?",{"$f":"IFERROR(IF(INDEX(dms_060301_Avg_Duration_Sustained_Int_Values,1,1)<>\"\",\"yes\",\"no\"),\"no\")","v":"no"},"dms_060301_checkvalue","=IFERROR(IF(INDEX(dms_060301_Avg_Duration_Sustained_Int_Values,1,1)<>\"\",\"yes\",\"no\"),\"no\")"]
[null,null,0,null,"=IF(AND(dms_Model=\"CA\",(dms_060301_checkvalue=\"no\")),\"error - NR not present\",\"no errors\")"]
[null,"Table 6.3.1 - last row reference",{"$f":"IFERROR(IF(dms_Model=\"CA\",LOOKUP(2,1/(dms_060301_Avg_Duration_Sustained_Int_Values<>\"\"),(ROW(dms_060301_Avg_Duration_Sustained_Int_Values))),\"not a CA\"),\"6.3 not present\")","v":"6.3 not present"},"dms_060301_LastRow","=IFERROR(IF(dms_Model=\"CA\",LOOKUP(2,1/(dms_060301_Avg_Duration_Sustained_Int_Values<>\"\"),(ROW(dms_060301_Avg_Duration_Sustained_Int_Values))),\"not a CA\"),\"6.3 not present\")"]
[null,"Table 6.3.1 - max number rows",0,"dms_060301_MaxRows","=IFERROR(IF(dms_Model=\"CA\",(dms_060301_LastRow-15),\"not a CA\"),\"error\")"]
[null,"Table 6.6.3 - Public lighting repair - no. business days",{"$f":"INDEX(dms_663_List,MATCH(dms_TradingName,dms_TradingName_List))","v":5},"dms_663","=INDEX(dms_663_List,MATCH(dms_TradingName,dms_TradingName_List))"]
[null,"ARR or RESET RINS"]
[null,"How many rows in tables 6.1 or 6.7?  (leap year?)","insert dms_LeapYear NR if required",null,"'dms_LeapYear is used to determine dms_060701_Max_Rows BUT it is only found on worksheet 6.1 or 6.7 and the date value in the cell is used to determine whether it is a leap year"]
[null,"Is dms_LeapYear named range present?",{"$f":"IFERROR(IF(dms_LeapYear,\"yes\"),\"no\")","v":"no"}]
[null,"Table 6.7.1 - includes a leap year?",{"$f":"\nIFERROR(IF(MONTH(DATE(YEAR(dms_LeapYear),2,29))=2,\"is a leap year\",\"not a leap year\"),\n\"dms_LeapYear not present\")","v":"dms_LeapYear not present"},"dms_LeapYear_Result","=IFERROR(IF(MONTH(DATE(YEAR(dms_LeapYear),2,29))=2,\"is a leap year\",\"not a leap year\"),\"dms_LeapYear not present\")"]
[null,"MaxRows if Reset and leap year",{"$f":"IF(dms_LeapYear_Result=\"is a leap year\",1827,1826)","v":1826},"dms_060701_Reset_MaxRows","=IF(dms_LeapYear_Result=\"is a leap year\",1827,1826)",null,null,"number of days present in Reset RIN table"]
[null,"MaxRows if ARR and leap year",{"$f":"IF(dms_LeapYear_Result=\"is a leap year\",366,365)","v":365},"dms_060701_ARR_MaxRows","=IF(dms_LeapYear_Result=\"is a leap year\",366,365)",null,null,"number of days present in ARR RIN table"]
[null,"Table 6.7.1 - Max Rows (leap year/ non leap year)",{"$f":"IF(dms_Model=\"ARR\",dms_060701_ARR_MaxRows,IF(dms_Model=\"Reset\",dms_060701_Reset_MaxRows,\"not a relevant RIN type\"))","v":"not a relevant RIN type"},"dms_060701_MaxRows","=IF(dms_Model=\"ARR\",dms_060701_ARR_MaxRows,IF(dms_Model=\"Reset\",dms_060701_Reset_MaxRows,\"not a relevant RIN type\"))"]
[null,"How many columns in 6.7?   (4 or 5 feeder categories)",{"$f":"IF(dms_FifthFeeder_flag_NSP=\"NO\",\"This NSP has only 4 feeder categories\",\"This NSP has 5 feeder categories\")","v":"This NSP has only 4 feeder categories"}]
[null,"Table 6.7.1 - Last column (# of feeder categories > 4)",{"$f":"IF(dms_FifthFeeder_flag_NSP=\"NO\",10,12)","v":10},"dms_060701_MaxCols","=IF(dms_FifthFeeder_flag_NSP=\"NO\",8,10)"]
[null,"Table 6.7.1 - Number of offset rows",{"$f":"IF(dms_Model=\"ARR\",15,9)","v":9},"dms_060701_OffsetRows","=IF(dms_Model=\"ARR\",15,9)"]
[null,"Start date for telephone answering in 6.1 or 6.7?",null,null,"Using 060101 as naming standard not 060701 for start dates"]
[null,"Table 6.1.1 and 6.7.1 - Start Date as Text",{"$f":"IF(SUM(dms_SingleYear_Model)>0,(CONCATENATE(IF(LEN(CRY)=4,\"1-Jan-\",\"1-Jul-\"),LEFT(CRY,4))),(CONCATENATE(IF(LEN(CRCP_y4)=4,\"1-Jan-\",\"1-Jul-\"),LEFT(CRCP_y4,4))))","v":"1-Jul-2008"},"dms_060101_StartDateTxt","=IF(SUM(dms_SingleYear_Model)>1,(CONCATENATE(IF(LEN(CRY)=4,\"1-Jan-\",\"1-Jul-\"),LEFT(CRY,4))),(CONCATENATE(IF(LEN(CRCP_y4)=4,\"1-Jan-\",\"1-Jul-\"),LEFT(CRCP_y4,4))))"]
[null,"Table 6.1.1 and 6.7.1 - Start Date as Date Value",{"$f":"DATEVALUE(dms_060701_StartDateTxt)","v":39630},"dms_060101_StartDateVal","=DATEVALUE(dms_060701_StartDateTxt)"]
[null,"ARRs"]
[null,"How many rows in table 6.8?","insert dms_060801_StartCell NR if required",null,"dms_060801_StartCell is only found on worksheet 6.8 and is used to determine the starting date for the date range"]
[null,"Is dms_060801_StartCell named range present?","yes",null,"=IFERROR(IF((ROW(dms_060801_StartCell)-1)=1,\"yes\",\"yes\"),\"no\")"]
[null,"Table 6.8 - Number of offset rows",12,"dms_0608_OffsetRows","=IFERROR(IF(dms_Model=\"ARR\",(ROW(dms_060801_StartCell)-1),\"not an ARR\"),\"6.8 error\")"]
[null,"Table 6.8 - Last row","6.8 not present","dms_0608_LastRow","=IFERROR(IF(dms_060801_StartCell<>\"\",IF(dms_Model=\"ARR\",(LOOKUP(2,1/(dms_060801_01_Values<>\"\"),(ROW(dms_060801_01_Values)))),\"not an ARR\"),0),\"6.8 not present\")"]
[null,"Table 6.8 - MaxRows",{"$f":"IFERROR(IF(dms_Model=\"ARR\",(MAX(0,dms_0608_LastRow-dms_0608_OffsetRows)),\"not an ARR\"),\"6.8 not present\")","v":"not an ARR"},"dms_060801_MaxRows","=IFERROR(IF(dms_Model=\"ARR\",(MAX(0,dms_0608_LastRow-dms_0608_OffsetRows)),\"not an ARR\"),\"6.8 not present\")"]
[null,"TNSP RESET RINS"]
[null,"Table 7.9.4 only appears in TNSPs Reset RIN"]
[null,"Table 7.9.4 - first year",{"$f":"LEFT(PRCP_y3,4)","v":"2012"},"dms_070904_Start_Year","=LEFT(PRCP_y3,4)"]
[null,"SUBSET FILES"]
[null,"Is this Submission File a Subset File","Yes","dms_Partial"]
[null,"MISC"]
[null,"Distribution Determination Reference",{"$f":"INDEX(dms_DeterminationRef_List,MATCH(dms_TradingName,dms_TradingName_List))","v":"2015-20 Distribution Determination"},"dms_DeterminationRef"]
[null,"Public lighting NSP?",{"$f":"INDEX(dms_Public_Lighting_List,MATCH(dms_TradingName,dms_TradingName_List))","v":"YES"},"dms_Public_Lighting","=INDEX(dms_Public_Lighting_List,MATCH(dms_TradingName,dms_TradingName_List))"]
[null,"CBD Feeder for this business",{"$f":"INDEX(dms_CBD_flag,MATCH(dms_TradingName,dms_TradingName_List))","v":"YES"},"dms_CBD_flag_NSP"]
[null,"Urban Feeder for this business",{"$f":"INDEX(dms_Urban_flag,MATCH(dms_TradingName,dms_TradingName_List))","v":"YES"},"dms_Urban_flag_NSP"]
[null,"Short rural Feeder for this business",{"$f":"INDEX(dms_ShortRural_flag,MATCH(dms_TradingName,dms_TradingName_List))","v":"YES"},"dms_ShortRural_flag_NSP"]
[null,"Long rural Feeder for this business",{"$f":"INDEX(dms_LongRural_flag,MATCH(dms_TradingName,dms_TradingName_List))","v":"NO"},"dms_LongRural_flag_NSP"]
[null,"Fifth Feeder Category (eg. TasNetworks (D))",{"$f":"INDEX(dms_FeederType_5_flag,MATCH(dms_TradingName,dms_TradingName_List))","v":"NO"},"dms_FifthFeeder_flag_NSP","=INDEX(dms_FeederType_5_flag,MATCH(dms_TradingName,dms_TradingName_List))"]
[]
[null,"DISCARD FILES"]
[null,"discard this record?","NO","dms_DISCARD","If record is to be discarded from DB set this flag to YES"]
[]
[null,"USES NAMED RANGES FLAG","yes","dms_Defined_Names_Used"]
[]
[null,"REGULATORY YEARS FOR MULTI RYE SUBMISSIONS"]
[null,"Multiple RYE flag","NO","dms_Multi_RYE_flag"]
[null,null,"Manually specify RYE","Named ranges to apply"]
[null,null,2013,"dms_RYE_01"]
[null,null,2014,"dms_RYE_02"]
[null,null,2015,"dms_RYE_03"]
[null,null,2016,"dms_RYE_04"]
[null,null,2017,"dms_RYE_05"]
[null,null,2018,"dms_RYE_06"]
[null,null,2019,"dms_RYE_07"]
[null,null,2020,"dms_RYE_08"]
[null,null,2021,"dms_RYE_09"]

{"sheet":"2.5 Connections","index":4,"n_rows":69,"n_cols":14,"rows_kept":69,"cut":false,"hidden":false,"merged":[[53,4,53,13],[5,1,5,2],[12,4,12,13],[11,1,11,13],[31,4,31,13],[52,1,52,13],[30,1,30,13],[13,4,13,13],[32,4,32,13]]}
[null,"REGULATORY REPORTING STATEMENT"]
[null,{"$f":"INDEX(dms_TradingNameFull_List,MATCH(dms_TradingName,dms_TradingName_List))","v":"Energex"}]
[null,{"$f":"CONCATENATE(\"NEW HISTORICAL CATEGORY ANALYSIS DATA \",CRY,\" TO \",FRY)","v":"NEW HISTORICAL CATEGORY ANALYSIS DATA 2008-09 TO 2017-18"}]
[null,"2.5 CONNECTIONS"]
[]
[null,"There are THREE tables on this worksheet - each has been 'grouped' (and sub-grouped) for easy navigation. See the Instructions sheet on how to group or ungroup tables. "]
[]
[]
[]
[null,"2.5.2 - COST METRICS BY CONNECTION CLASSIFICATION"]
[]
[null,"EXPENDITURE - STANDARD CONTROL SERVICES"]
[null,null,null,null,"EXPENDITURE"]
[null,null,null,null,"($0's, nominal)"]
[null,null,null,null,{"$f":"dms_y1","v":"2008-09"},{"$f":"dms_y2","v":"2009-10"},{"$f":"dms_y3","v":"2010-11"},{"$f":"dms_y4","v":"2011-12"},{"$f":"dms_y5","v":"2012-13"},{"$f":"dms_y6","v":"2013-14"},{"$f":"dms_y7","v":"2014-15"},{"$f":"dms_y8","v":"2015-16"},{"$f":"dms_y9","v":"2016-17"},{"$f":"dms_y10","v":"2017-18"}]
[null,"RESIDENTIAL","Simple connection LV",null,7990560.7351770643,4810889.3997698138,5460157.4735391969,6764026.2827083142,11011369.91898573,16517697.000713067,7356199.8974253554,4771383.6207071049,6339380.646008471,9640422.7047126871]
[null,null,"Complex connection LV",null,259037.94650507733,152346.76134915106,122973.82516661572,89913.633497287461,118052.74092641157,232810.01756906006,388780.02227512805,331839.28083735227,409526.30832967535,2272958.7202575267]
[null,null,"Complex connection HV",null,9121102.355136307,5799198.5193933211,4015442.9261810258,3467093.8024482145,4001714.2299318942,2688242.9528862215,2317233.4142786372,1948450.5648847264,2750854.3821159718,304519.51807886816]
[null,"COMMERCIAL/INDUSTRIAL","Simple connection LV",null,1838776.8101546823,1123423.8435693174,1301094.8093048832,1305919.9116063784,2277733.5580897359,1511974.0429373826,653059.53357805789,786361.10098290502,2134390.2212529778,780738.46323890751]
[null,null,"Complex connection HV (customer connected at LV, minor HV works)",null,36557668.632906184,16412892.976956818,13786999.849811783,13683526.502707291,22449384.751234807,22163257.86623634,23602697.088233598,17541700.477073282,28657880.44531367,25791827.631872099]
[null,null,"Complex connection HV (customer connected at LV, upstream asset works)",null,2849699.6366931545,1519065.4222315918,769724.28175578779,930919.18777792575,1890240.5107424038,466969.2264526647,2241620.2443657471,8777708.6810396127,2690383.679939874,181236.98676265992]
[null,null,"Complex connection HV (customer connected at HV)",null,1611364.4668284762,2117137.5106659597,53341.732899766961,566513.55735709891,1008546.4401210495,421298.64660425065,25420.867065757273,0,0,331442.15649886825]
[null,null,"Complex connection sub-transmission",null,31621305.067277636,33139814.966610957,30059999.125574235,11166679.954216208,7130643.3004013589,12915572.802718773,412129.74366337457,652185.7188864405,27186.127592817153,36246.440936176441]
[null,"SUBDIVISION","Complex connection LV",null,174695.8620158096,81396.200887733299,16608.351474810952,5150.6298741605488,32680.433937980517,15067.045373780098,51324.324668855486,7891.9737498647919,20169.451054719575,22784.899633445577]
[null,null,"Complex connection HV (no upstream asset works)",null,16544866.686363967,6285044.4899276271,1921579.591460309,2546436.7528758068,2670594.9320180835,2244163.2883231617,3552092.8391614519,1484997.1018386765,1793125.4683918096,984710.47800350911]
[null,null,"Complex connection HV (with upstream asset works)",null,0,0,0,0,0,0,0,0,0,0]
[null,"EMBEDDED GENERATION","Simple connection LV",null,0,0,0,0,0,0,0,0,0,0]
[null,null,"Complex connection HV (small capacity)",null,0,0,0,0,0,0,0,0,0,0]
[null,null,"Complex connection HV (large capacity)",null,0,0,0,0,0,0,0,0,0,0]
[]
[null,"EXPENDITURE - STANDARD CONTROL SERVICES - CAPITAL CONTRIBUTIONS"]
[null,null,null,null,"EXPENDITURE"]
[null,null,null,null,"($0's, nominal)"]
[null,null,null,null,{"$f":"dms_y1","v":"2008-09"},{"$f":"dms_y2","v":"2009-10"},{"$f":"dms_y3","v":"2010-11"},{"$f":"dms_y4","v":"2011-12"},{"$f":"dms_y5","v":"2012-13"},{"$f":"dms_y6","v":"2013-14"},{"$f":"dms_y7","v":"2014-15"},{"$f":"dms_y8","v":"2015-16"},{"$f":"dms_y9","v":"2016-17"},{"$f":"dms_y10","v":"2017-18"}]
[null,"RESIDENTIAL","Simple connection LV",null,0,0,0,0,0,0,0,0,0,0]
[null,null,"Complex connection LV",null,11908628.036236688,16076713.398594992,14774824.231210882,13310563.217620486,8211688.4847112652,3265273.5873361779,8804847.1655880362,3452032.682216045,4024582.4023075649,903622.21547380707]
[null,null,"Complex connection HV",null,0,0,0,0,0,0,0,0,0,0]
[null,"COMMERCIAL/INDUSTRIAL","Simple connection LV",null,0,0,0,0,0,0,0,0,0,0]
[null,null,"Complex connection HV (customer connected at LV, minor HV works)",null,2174313.6020942316,2935335.3310867362,1639247.4478274006,11052555.239815339,1901008.4739801043,-303172.94475196645,521474.92941847775,20209414.392036039,2496529.9373897044,3451464.797269606]
[null,null,"Complex connection HV (customer connected at LV, upstream asset works)",null,12263052.942964813,16555188.973569116,21346805.729164302,15022442.504917214,12346454.921021827,4052186.33817947,15574790.575131193,8829319.0322042406,9082712.9960707184,8423480.5708999522]
[null,null,"Complex connection HV (customer connected at HV)",null,0,0,22846.471330546319,618015.09767548181,2351165.732204142,550420.64675551211,40247.709494190283,8815.3514793661707,0,152876.32475116037]
[null,null,"Complex connection sub-transmission",null,481291.48215551599,649746.15012363857,1337956.2906984293,716357.36596440279,1976493.6240120062,2853481.6332458411,1147924.3744642343,1509960.7594894869,1975774.9392320137,204340.84292619198]
[null,"SUBDIVISION","Complex connection LV",null,1597789.7183825148,1969117.8899860189,1755530.9097909005,380683.26820529281,2042242.6700980796,1376199.1117165436,3997195.1772842775,187966.23567998162,360863.2267168978,308912.89121289388]
[null,null,"Complex connection HV (no upstream asset works)",null,15711830.629904496,15933369.564494859,20520764.921051584,19087426.832670063,16875365.281612255,20743215.456153285,27950207.170842703,45351369.606894828,50988908.778283104,42842644.397466384]
[null,null,"Complex connection HV (with upstream asset works)",null,1597231.4482617374,1429821.912144636,2870014.2991575147,1133933.2818630398,1287104.2213609447,2740367.7813651389,2513888.0477768849,0,0,0]
[null,"EMBEDDED GENERATION","Simple connection LV",null,0,0,0,0,0,0,0,0,0,0]
[null,null,"Complex connection HV (small capacity)",null,0,0,0,0,0,0,0,0,0,0]
[null,null,"Complex connection HV (large capacity)",null,0,0,0,0,0,0,0,0,0,0]
[]
[]
[null,"2.5.3 - VOLUMES BY CONNECTION CLASSIFICATION"]
[]
[null,"NEW CONNECTIONS - STANDARD CONTROL SERVICES"]
[null,null,null,null,"VOLUMES\n(0's)"]
[null,null,null,null,{"$f":"dms_y1","v":"2008-09"},{"$f":"dms_y2","v":"2009-10"},{"$f":"dms_y3","v":"2010-11"},{"$f":"dms_y4","v":"2011-12"},{"$f":"dms_y5","v":"2012-13"},{"$f":"dms_y6","v":"2013-14"},{"$f":"dms_y7","v":"2014-15"},{"$f":"dms_y8","v":"2015-16"},{"$f":"dms_y9","v":"2016-17"},{"$f":"dms_y10","v":"2017-18"}]
[null,"RESIDENTIAL","Simple connection LV",null,39527,37018,35749,36490,32055,33035,39123,39699,36377,36497]
[null,null,"Complex connection LV",null,44.161403508771926,40.09122807017544,38.056140350877193,29.508771929824562,18.112280701754386,11.6,58,56.18571428571429,69,63]
[null,null,"Complex connection HV",null,8082.8571428571431,6628.9285714285716,6998.5714285714284,5458.3928571428569,3844.2857142857142,2809.2857142857142,345,414.52449567723346,620,354]
[null,"COMMERCIAL/INDUSTRIAL","Simple connection LV",null,2228,3053,3417,3113,3257,1757,2274,3139,13743,387]
[null,null,"Complex connection HV (customer connected at LV, minor HV works)",null,1962.0958083832334,1624.2514970059879,1934.8083832335328,1782.7784431137723,1326.688622754491,1607.3592814371257,1519,2782.4421593830334,1962,1355]
[null,null,"Complex connection HV (customer connected at LV, upstream asset works)",null,73.38095238095238,82.952380952380963,71.785714285714292,73.38095238095238,60.61904761904762,73.38095238095238,67,168.63636363636365,53,39]
[null,null,"Complex connection HV (customer connected at HV)",null,3,3,5,10,11,6,9,0,0,16]
[null,null,"Complex connection sub-transmission",null,78.857142857142847,78.857142857142847,51.428571428571423,54.857142857142854,41.142857142857139,13.714285714285714,24,1280,128,3]
[null,"SUBDIVISION","Complex connection LV",null,5351.3777777777777,4233.4222222222224,1514.9333333333332,119.02222222222223,317.06666666666666,24,8,10.32258064516129,8,2]
[null,null,"Complex connection HV (no upstream asset works)",null,1568.7284304047384,1419.9913129318854,1354.1609081934848,1386.0216189536031,1090.3443237907206,1083.5439289239882,1635,8820.7700784947065,7876.7960412415032,4739]
[null,null,"Complex connection HV (with upstream asset works)",null,0,0,0,0,0,0,0,0,0,0]
[null,"EMBEDDED GENERATION","Simple connection LV",null,1956.8624828411532,19133.100559642393,51611.623666889587,72572.727464714379,74483.640139382638,38137.341874626029,28380,19780.419922391746,22561,10511]
[null,null,"Complex connection HV (small capacity)",null,0,0,0,0,0,0,0,0,0,0]
[null,null,"Complex connection HV (large capacity)",null,0,0,0,0,0,0,0,0,0,0]

{"sheet":"2.6 Non-network","index":5,"n_rows":48,"n_cols":15,"rows_kept":48,"cut":false,"hidden":false,"merged":[[10,5,10,14],[18,1,18,4],[19,1,19,4],[40,1,40,4],[41,1,41,4],[27,1,27,4],[30,1,30,4],[36,1,36,4],[37,1,37,4],[16,1,16,4],[17,1,17,4],[28,1,28,4],[29,1,29,4],[38,1,38,4],[39,1,39,4],[11,5,11,14],[5,1,5,2],[14,1,14,4],[15,1,15,4],[26,1,26,4],[23,1,23,4],[25,1,25,4],[20,1,20,4],[21,1,21,4],[22,1,22,4],[54,1,54,4],[55,1,55,4],[56,1,56,4],[44,1,44,4],[45,1,45,4],[47,1,47,4],[48,1,48,4],[53,1,53,4],[51,1,51,4],[52,1,52,4],[49,1,49,4],[50,1,50,4],[42,1,42,4],[43,1,43,4],[31,1,31,4],[32,1,32,4],[33,1,33,4],[34,1,34,4]]}
[null,"REGULATORY REPORTING STATEMENT"]
[null,{"$f":"INDEX(dms_TradingNameFull_List,MATCH(dms_TradingName,dms_TradingName_List))","v":"Energex"}]
[null,{"$f":"CONCATENATE(\"NEW HISTORICAL CATEGORY ANALYSIS DATA \",CRY,\" TO \",FRY)","v":"NEW HISTORICAL CATEGORY ANALYSIS DATA 2008-09 TO 2017-18"}]
[null,"2.6 NON NETWORK EXPENDITURE"]
[]
[null,"There are THREE tables on this worksheet - each has been 'grouped' (and sub-grouped) for easy navigation. See the Instructions sheet on how to group or ungroup tables. "]
[]
[]
[]
[null,"2.6.4 - INFORMATION & COMMUNICATIONS TECHNOLOGY - CAPEX BY PURPOSE"]
[null,null,null,null,null,"EXPENDITURE"]
[null,null,null,null,null,"($0's, nominal)"]
[null,null,null,null,null,{"$f":"dms_y1","v":"2008-09"},{"$f":"dms_y2","v":"2009-10"},{"$f":"dms_y3","v":"2010-11"},{"$f":"dms_y4","v":"2011-12"},{"$f":"dms_y5","v":"2012-13"},{"$f":"dms_y6","v":"2013-14"},{"$f":"dms_y7","v":"2014-15"},{"$f":"dms_y8","v":"2015-16"},{"$f":"dms_y9","v":"2016-17"},{"$f":"dms_y10","v":"2017-18"}]
[null,"ICT CAPABILITY GROWTH"]
[null,"ICT CAPABILITY GROWTH",null,null,null,7332106.2338791545,14423442.135881316,11105968.277276853,28419314.662483077,27477019.06024427,11028738.054333106,12028113.896018565,9725756.2879110612,1946551.6919997637,8044409.5723804468]
[]
[]
[]
[]
[]
[]
[]
[]
[]
[null,"ICT ASSET EXTENSIONS"]
[null,"ICT ASSET EXTENSIONS",null,null,null,2259318.5189828374,4147816.0567622334,10218349.254226901,7323100.3322766889,3303870.7302328302,3477133.477105632,6286743.7437596414,4415623.3072988987,4412858.1844041292,1188721.0445629933]
[]
[]
[]
[]
[]
[]
[]
[]
[]
[null,"ICT ASSET REMEDITATION"]
[null,"ICT ASSET REMEDITATION",null,null,null,85450.310870896035,167789.57914395203,493254.50957142108,213683.6409579991,95817.673402795364,48890.934076611491,479408.74005015881,281147.30292641697,20873.519031895667,5614.0258781398888]
[]
[]
[]
[]
[]
[]
[]
[]
[]
[null,"ICT ASSET REPLACEMENT"]
[null,"ICT ASSET REPLACEMENT",null,null,null,6088943.0616728934,11942381.427020248,12165975.736275584,20299597.573975515,17414071.919705044,5232134.498459585,9760474.0816148184,9277493.2911551576,5488967.9896428687,13380984.363109516]

{"sheet":"2.10 Network overheads","index":6,"n_rows":35,"n_cols":13,"rows_kept":35,"cut":false,"hidden":false,"merged":[[7,3,7,12],[23,3,23,12],[8,3,8,12],[24,3,24,12]]}
[null,"REGULATORY REPORTING STATEMENT"]
[null,{"$f":"dms_TradingName","v":"Energex"}]
[null,{"$f":"CONCATENATE(\"NEW HISTORICAL CATEGORY ANALYSIS DATA \",CRY,\" TO \",FRY)","v":"NEW HISTORICAL CATEGORY ANALYSIS DATA 2008-09 TO 2017-18"}]
[null,"2.10 OVERHEADS"]
[]
[]
[null,"2.10.1 - NETWORK OVERHEADS EXPENDITURE"]
[null,null,null,"EXPENDITURE"]
[null,null,null,"($0's, nominal)"]
[null,null,null,{"$f":"dms_y1","v":"2008-09"},{"$f":"dms_y2","v":"2009-10"},{"$f":"dms_y3","v":"2010-11"},{"$f":"dms_y4","v":"2011-12"},{"$f":"dms_y5","v":"2012-13"},{"$f":"dms_y6","v":"2013-14"},{"$f":"dms_y7","v":"2014-15"},{"$f":"dms_y8","v":"2015-16"},{"$f":"dms_y9","v":"2016-17"},{"$f":"dms_y10","v":"2017-18"}]
[null,"OPEX"]
[null,"Standard Control Services","Total  ",75848838.206878737,78881785.277734905,85812984.900094107,103316148.90035412,103579657.16743889,99668265.495159566,106136927.08400166,88745188.019987792,78809343.180459231,85758344.635427579]
[null,"Alternative Control Services","Total  ",15729499.772267757,33063938.47225298,25160856.642713834,26557717.828158349,23340904.420453425,26886473.772109319,7514343.2913826657,22712141.318775132,25072611.044252567,28348933.272099465]
[null,"CAPEX"]
[null,"Standard Control Services","Total  ",53680244.888502352,66500561.170856014,71885772.053147569,76204470.42869921,64606591.276638091,60608062.038542472,60316148.103558414,50495590.160077952,49396725.067495786,50367195.29504589]
[null,"Alternative Control Services","Total  ",8378507.2619775822,4980679.9506070828,4744105.3416630113,6830740.9922171347,5556787.6196974907,5196887.6127546597,1348328.1708010698,4500529.4099042872,4440987.9534898549,3264331.3314057421]
[null,"OTHER DISTRIBUTION SERVICES"]
[null,"Negotiated Services","Total  ",0,0,0,0,0,0,0,0,0,0]
[null,"Unregulated Services","Total  ",1899425.3628254971,8724449.636334613,9954414.5171957798,7981572.4659511764,6445163.9887651904,5315495.840255932,4267078.3491793321,4240550.8708648458,4865940.9330681879,2077933.0947198272]
[]
[]
[]
[null,"2.10.2 - CORPORATE OVERHEADS EXPENDITURE"]
[null,null,null,"EXPENDITURE"]
[null,null,null,"($0's, nominal)"]
[null,null,null,{"$f":"dms_y1","v":"2008-09"},{"$f":"dms_y2","v":"2009-10"},{"$f":"dms_y3","v":"2010-11"},{"$f":"dms_y4","v":"2011-12"},{"$f":"dms_y5","v":"2012-13"},{"$f":"dms_y6","v":"2013-14"},{"$f":"dms_y7","v":"2014-15"},{"$f":"dms_y8","v":"2015-16"},{"$f":"dms_y9","v":"2016-17"},{"$f":"dms_y10","v":"2017-18"}]
[null,"OPEX"]
[null,"Standard Control Services","Total",45915593.671374202,49141385.136031933,51816218.765679434,56793191.968422398,73463592.026476666,60768744.284492135,72129304.822425827,57969053.850510761,64998832.297204383,69480660.766947657]
[null,"Alternative Control Services","Total",10059076.497589909,13489593.355406268,11441316.243598178,12766315.688059459,14055041.49824319,13476886.542420633,5690952.7825467596,14128421.188143181,17824868.076071244,18356928.979743641]
[null,"CAPEX"]
[null,"Standard Control Services","Total",8074035.4813935244,8959453.1975074466,11146668.510748247,11801564.037995327,11872864.417489404,11102120.657105235,12018434.248877548,9593158.3946434986,14347391.196511788,14272709.771698685]
[null,"Alternative Control Services","Total",609614.31258275395,643430.60366169899,741175.4750221055,1045251.9253441023,1052450.3220276756,969711.82286077936,269148.27012389211,855011.12774590566,1289895.0564162459,906180.80855490407]
[null,"OTHER DISTRIBUTION SERVICES"]
[null,"Negotiated Services","Total",0,0,0,0,0,0,0,0,0,0]
[null,"Unregulated Services","Total",4422969.3449630979,4527610.9860066911,3098077.0701168417,3118958.1778628207,3028267.2329637306,3356687.6741632242,3749580.207198774,3861146.6698061679,5034596.9030633466,3718612.1209633015]

{"sheet":"2.11 Labour","index":7,"n_rows":25,"n_cols":12,"rows_kept":25,"cut":false,"hidden":false,"merged":[[5,1,5,2],[8,2,8,11],[9,2,9,11]]}
[null,"REGULATORY REPORTING STATEMENT"]
[null,{"$f":"dms_TradingName","v":"Energex"}]
[null,{"$f":"CONCATENATE(\"NEW HISTORICAL CATEGORY ANALYSIS DATA \",CRY,\" TO \",FRY)","v":"NEW HISTORICAL CATEGORY ANALYSIS DATA 2008-09 TO 2017-18"}]
[null,"2.11 LABOUR"]
[]
[null,"Table numbering on this worksheet starts at 2.11.3."]
[]
[null,"2.11.3 - LABOUR / NON-LABOUR EXPENDITURE SPLIT - STANDARD CONTROL SERVICES"]
[null,null,"EXPENDITURE"]
[null,null,"($0's, nominal)"]
[null,null,{"$f":"dms_y1","v":"2008-09"},{"$f":"dms_y2","v":"2009-10"},{"$f":"dms_y3","v":"2010-11"},{"$f":"dms_y4","v":"2011-12"},{"$f":"dms_y5","v":"2012-13"},{"$f":"dms_y6","v":"2013-14"},{"$f":"dms_y7","v":"2014-15"},{"$f":"dms_y8","v":"2015-16"},{"$f":"dms_y9","v":"2016-17"},{"$f":"dms_y10","v":"2017-18"}]
[null,"OPEX"]
[null,"In-house labour expenditure",170457397.84398621,178873004.07756579,191138735.24293453,203175031.09746256,216671000.87990558,186319325.91999522,191155797.06220692,167845385.37863848,180053156.71412954,160840530.55166799]
[null,"Labour expenditure outsourced to related parties",25341646.304746311,25662887.697996199,32088250.548390705,40593766.922347449,41438546.282442443,35824717.379171826,35119910.928660594,898159.31319594046,5401071.9653186686,11782403.035192348]
[null,"Labour expenditure outsourced to unrelated parties",104801379.08916149,103035008.29558273,105814692.957692,116827173.7407324,96887080.648927003,105479718.00322688,110983772.6250978,90795125.518192947,79948717.542310759,70748659.818345249]
[null,"Controllable non-labour expenditure",31765412.766429458,35080932.645318016,9432327.9836027306,75076291.758239776,200566555.28703228,267311356.3341814,248742830.29255712,76745761.146667972,70380675.311093971,97832976.469600707]
[null,"Uncontrollable non-labour expenditure",9708625.7011974547,11414231.983609833,10488857.411758326,9130630.6151497457,11145731.339478018,12049452.86910994,12793876.612234773,12467586.741316332,12995936.37698606,15382444.650405154]
[null,"Total",{"$f":"SUM(C13:C17)","v":342074461.70552093},null,null,null,null,null,{"$f":"SUM(I13:I17)","v":598796187.5207572},{"$f":"SUM(J13:J17)","v":348752018.09801167},{"$f":"SUM(K13:K17)","v":348779557.90983903},{"$f":"SUM(L13:L17)","v":356587014.52521145}]
[null,"CAPEX"]
[null,"In-house labour expenditure",198940823.7575016,226746384.76265645,239174296.44230017,239174296.44230017,239781548.65631798,216113819.49984926,203314392.05794731,183101233.13701737,178294280.06826296,171708310.73086849]
[null,"Labour expenditure outsourced to related parties",8663284.3533311021,8526260.6320537683,12726660.758535931,12726660.758535927,11516783.327886643,7858426.345154983,7463142.8504226618,2247289.7449335107,6465925.4322003387,9603489.8329349719]
[null,"Labour expenditure outsourced to unrelated parties",165368691.38742304,206724757.76478502,217494994.64375767,217494994.64375767,220723335.77218843,174669333.69880232,181668976.15780273,129055074.9980814,106813241.65479635,99615535.618644476]
[null,"Controllable non-labour expenditure",413305926.50505024,485810681.95475453,402706046.02768666,403418852.06603837,347995752.02079105,314137024.47403073,298275002.91078728,250394427.883156,241441831.92286393,230821078.68791643]
[null,"Uncontrollable non-labour expenditure",9740694.8224487696,9523387.3618097771,9638616.1887909677,9638616.1887909658,9228487.8010118734,7684199.0098712072,8346261.0129546486,6818018.8574267272,6905213.7556324163,4252696.0498498594]
[null,"Total",{"$f":"SUM(C20:C24)","v":796019420.82575464},null,null,null,null,null,{"$f":"SUM(I20:I24)","v":699067774.98991454},{"$f":"SUM(J20:J24)","v":571616044.62061512},{"$f":"SUM(K20:K24)","v":539920492.83375597},{"$f":"SUM(L20:L24)","v":516001110.92021418}]

{"sheet":"Amendments","index":8,"n_rows":3,"n_cols":4,"rows_kept":3,"cut":false,"hidden":false,"merged":[[1,1,1,3]]}
[null,{"$f":"CONCATENATE(\"If \",dms_TradingName,\" resubmits this Regulatory Reporting Statement, please use this worksheet to identify amendments made to data resubmitted to the AER.\")","v":"If Energex resubmits this Regulatory Reporting Statement, please use this worksheet to identify amendments made to data resubmitted to the AER."}]
[null,"NSP data amendments"]
[null,"Worksheet","Table/Cell","Reason for amendment"]